Workbook

Sheet الشهادات
T1: 1
A4: اسم الطلبة// | D4: =IF(T1<=MAX(تحكم!$A:$A),OFFSET(تحكم!$A$1,MATCH(T1,تحكم!$A:$A,0)-1,12),"") -> mk1 | V4: من | W4: إلى | Y4: عدد الطلبة | Z4: =MAX(تحكم!$A:$A) -> 42
A5: رقم الجلوس// | D5: =IF(T1<=MAX(تحكم!$A:$A),OFFSET(تحكم!$A$1,MATCH(T1,تحكم!$A:$A,0)-1,13),"") -> 5 | I5: الصف// | J5: =IF(T1<=MAX(تحكم!$A:$A),OFFSET(تحكم!$A$1,MATCH(T1,تحكم!$A:$A,0)-1,9),"") -> t1 | O5: التخصص// | P5: =IF(T1<=MAX(تحكم!$A:$A),OFFSET(تحكم!$A$1,MATCH(T1,تحكم!$A:$A,0)-1,16),"") -> / | V5: 1 | W5: 42
A6: لغة عربية | B6: لغة انجليزية | C6: رياضيات عامة | D6: فيزياء | E6: رسم فني | F6: فلسفة | G6: مواد وعمليات | H6: رياضة تخصصية | I6: تحكم هيدروليكي | K6: أساسيات حاسب | M6: نظم تحكم | O6: هندسة كهربية | P6: دوائر إلكترونية | Q6: تدريبات مهنية | R6: مجموع كلي | S6: تربية دينية
I7: نظري | J7: معمل | K7: معمل | L7: نظري | M7: معمل | N7: نظري
A8: 20 | B8: 20 | C8: 20 | D8: 20 | E8: 30 | F8: 20 | G8: 10 | H8: 20 | I8: 10 | J8: 5 | K8: 5 | L8: 15 | M8: 5 | N8: 15 | O8: 20 | P8: 15 | Q8: 60 | R8: 310 | S8: 10
A9: =IF(T1<=MAX(تحكم!$A:$A),OFFSET(تحكم!$A$1,MATCH(T1,تحكم!$A:$A,0)-1,A10),"") -> 15 | B9: =IF(T1<=MAX(تحكم!$A:$A),OFFSET(تحكم!$A$1,MATCH(T1,تحكم!$A:$A,0)-1,B10),"") -> 16.5 | C9: =IF(T1<=MAX(تحكم!$A:$A),OFFSET(تحكم!$A$1,MATCH(T1,تحكم!$A:$A,0)-1,C10),"") -> 16.5 | D9: =IF(T1<=MAX(تحكم!$A:$A),OFFSET(تحكم!$A$1,MATCH(T1,تحكم!$A:$A,0)-1,D10),"") -> 17.5 | E9: =IF(T1<=MAX(تحكم!$A:$A),OFFSET(تحكم!$A$1,MATCH(T1,تحكم!$A:$A,0)-1,E10),"") -> 18 | F9: =IF(T1<=MAX(تحكم!$A:$A),OFFSET(تحكم!$A$1,MATCH(T1,تحكم!$A:$A,0)-1,F10),"") -> 19 | G9: =IF(T1<=MAX(تحكم!$A:$A),OFFSET(تحكم!$A$1,MATCH(T1,تحكم!$A:$A,0)-1,G10),"") -> 5.5 | H9: =IF(T1<=MAX(تحكم!$A:$A),OFFSET(تحكم!$A$1,MATCH(T1,تحكم!$A:$A,0)-1,H10),"") -> 9.8 | I9: =IF(T1<=MAX(تحكم!$A:$A),OFFSET(تحكم!$A$1,MATCH(T1,تحكم!$A:$A,0)-1,I10),"") -> 6.5 | J9: =IF(T1<=MAX(تحكم!$A:$A),OFFSET(تحكم!$A$1,MATCH(T1,تحكم!$A:$A,0)-1,J10),"") -> 2.9 | K9: =IF(T1<=MAX(تحكم!$A:$A),OFFSET(تحكم!$A$1,MATCH(T1,تحكم!$A:$A,0)-1,K10),"") -> 2.7 | L9: =IF(T1<=MAX(تحكم!$A:$A),OFFSET(تحكم!$A$1,MATCH(T1,تحكم!$A:$A,0)-1,L10),"") -> 4 | M9: =IF(T1<=MAX(تحكم!$A:$A),OFFSET(تحكم!$A$1,MATCH(T1,تحكم!$A:$A,0)-1,M10),"") -> 3.3 | N9: =IF(T1<=MAX(تحكم!$A:$A),OFFSET(تحكم!$A$1,MATCH(T1,تحكم!$A:$A,0)-1,N10),"") -> 8 | O9: =IF(T1<=MAX(تحكم!$A:$A),OFFSET(تحكم!$A$1,MATCH(T1,تحكم!$A:$A,0)-1,O10),"") -> 11 | P9: =IF(T1<=MAX(تحكم!$A:$A),OFFSET(تحكم!$A$1,MATCH(T1,تحكم!$A:$A,0)-1,P10),"") -> 7.7 | Q9: =IF(T1<=MAX(تحكم!$A:$A),OFFSET(تحكم!$A$1,MATCH(T1,تحكم!$A:$A,0)-1,Q10),"") -> 46 | R9: =IF(T1<=MAX(تحكم!$A:$A),OFFSET(تحكم!$A$1,MATCH(T1,تحكم!$A:$A,0)-1,R10),"") -> 198.6 | S9: =IF(T1<=MAX(تحكم!$A:$A),OFFSET(تحكم!$A$1,MATCH(T1,تحكم!$A:$A,0)-1,S10),"") -> 6.5
A10: 23 | B10: 28 | C10: 38 | D10: 43 | E10: 48 | F10: 33 | G10: 53 | H10: 78 | I10: 68 | J10: 73 | K10: 63 | L10: 58 | M10: 98 | N10: 93 | O10: 83 | P10: 88 | Q10: 103 | R10: 104 | S10: 109
B11: رئيس الكنترول | N11: مدير إدارة المدرسة
T15: =T1+1 -> 2
A18: اسم الطلبة// | D18: =IF(T15<=MAX(تحكم!$A:$A),OFFSET(تحكم!$A$1,MATCH(T15,تحكم!$A:$A,0)-1,12),"") -> mk2
A19: رقم الجلوس// | D19: =IF(T15<=MAX(تحكم!$A:$A),OFFSET(تحكم!$A$1,MATCH(T15,تحكم!$A:$A,0)-1,13),"") -> 6 | I19: الصف// | J19: =IF(T15<=MAX(تحكم!$A:$A),OFFSET(تحكم!$A$1,MATCH(T15,تحكم!$A:$A,0)-1,9),"") -> 0 | O19: التخصص// | P19: =IF(T15<=MAX(تحكم!$A:$A),OFFSET(تحكم!$A$1,MATCH(T15,تحكم!$A:$A,0)-1,16),"") -> 0
A20: لغة عربية | B20: لغة انجليزية | C20: رياضيات عامة | D20: فيزياء | E20: رسم فني | F20: فلسفة | G20: مواد وعمليات | H20: رياضة تخصصية | I20: تحكم هيدروليكي | K20: أساسيات حاسب | M20: نظم تحكم | O20: هندسة كهربية | P20: دوائر إلكترونية | Q20: تدريبات مهنية | R20: مجموع كلي | S20: تربية دينية
I21: نظري | J21: معمل | K21: معمل | L21: نظري | M21: معمل | N21: نظري
A22: 20 | B22: 20 | C22: 20 | D22: 20 | E22: 30 | F22: 20 | G22: 10 | H22: 20 | I22: 10 | J22: 5 | K22: 5 | L22: 15 | M22: 5 | N22: 15 | O22: 20 | P22: 15 | Q22: 60 | R22: 310 | S22: 10
A23: =IF(T15<=MAX(تحكم!$A:$A),OFFSET(تحكم!$A$1,MATCH(T15,تحكم!$A:$A,0)-1,A24),"") -> 17 | B23: =IF(T15<=MAX(تحكم!$A:$A),OFFSET(تحكم!$A$1,MATCH(T15,تحكم!$A:$A,0)-1,B24),"") -> 16.5 | C23: =IF(T15<=MAX(تحكم!$A:$A),OFFSET(تحكم!$A$1,MATCH(T15,تحكم!$A:$A,0)-1,C24),"") -> 17.5 | D23: =IF(T15<=MAX(تحكم!$A:$A),OFFSET(تحكم!$A$1,MATCH(T15,تحكم!$A:$A,0)-1,D24),"") -> 19.5 | E23: =IF(T15<=MAX(تحكم!$A:$A),OFFSET(تحكم!$A$1,MATCH(T15,تحكم!$A:$A,0)-1,E24),"") -> 22.5 | F23: =IF(T15<=MAX(تحكم!$A:$A),OFFSET(تحكم!$A$1,MATCH(T15,تحكم!$A:$A,0)-1,F24),"") -> 19 | G23: =IF(T15<=MAX(تحكم!$A:$A),OFFSET(تحكم!$A$1,MATCH(T15,تحكم!$A:$A,0)-1,G24),"") -> 7 | H23: =IF(T15<=MAX(تحكم!$A:$A),OFFSET(تحكم!$A$1,MATCH(T15,تحكم!$A:$A,0)-1,H24),"") -> 11.3 | I23: =IF(T15<=MAX(تحكم!$A:$A),OFFSET(تحكم!$A$1,MATCH(T15,تحكم!$A:$A,0)-1,I24),"") -> 7.5 | J23: =IF(T15<=MAX(تحكم!$A:$A),OFFSET(تحكم!$A$1,MATCH(T15,تحكم!$A:$A,0)-1,J24),"") -> 3.8 | K23: =IF(T15<=MAX(تحكم!$A:$A),OFFSET(تحكم!$A$1,MATCH(T15,تحكم!$A:$A,0)-1,K24),"") -> 3.2 | L23: =IF(T15<=MAX(تحكم!$A:$A),OFFSET(تحكم!$A$1,MATCH(T15,تحكم!$A:$A,0)-1,L24),"") -> 10 | M23: =IF(T15<=MAX(تحكم!$A:$A),OFFSET(تحكم!$A$1,MATCH(T15,تحكم!$A:$A,0)-1,M24),"") -> 3.8 | N23: =IF(T15<=MAX(تحكم!$A:$A),OFFSET(تحكم!$A$1,MATCH(T15,تحكم!$A:$A,0)-1,N24),"") -> 12.5 | O23: =IF(T15<=MAX(تحكم!$A:$A),OFFSET(تحكم!$A$1,MATCH(T15,تحكم!$A:$A,0)-1,O24),"") -> 18 | P23: =IF(T15<=MAX(تحكم!$A:$A),OFFSET(تحكم!$A$1,MATCH(T15,تحكم!$A:$A,0)-1,P24),"") -> 10.7 | Q23: =IF(T15<=MAX(تحكم!$A:$A),OFFSET(تحكم!$A$1,MATCH(T15,تحكم!$A:$A,0)-1,Q24),"") -> 46 | R23: =IF(T15<=MAX(تحكم!$A:$A),OFFSET(تحكم!$A$1,MATCH(T15,تحكم!$A:$A,0)-1,R24),"") -> 229.5 | S23: =IF(T15<=MAX(تحكم!$A:$A),OFFSET(تحكم!$A$1,MATCH(T15,تحكم!$A:$A,0)-1,S24),"") -> 7
A24: 23 | B24: 28 | C24: 38 | D24: 43 | E24: 48 | F24: 33 | G24: 53 | H24: 78 | I24: 68 | J24: 73 | K24: 63 | L24: 58 | M24: 98 | N24: 93 | O24: 83 | P24: 88 | Q24: 103 | R24: 104 | S24: 109
B25: رئيس الكنترول | N25: مدير إدارة المدرسة
T29: =T15+1 -> 3
A32: اسم الطلبة// | D32: =IF(T29<=MAX(تحكم!$A:$A),OFFSET(تحكم!$A$1,MATCH(T29,تحكم!$A:$A,0)-1,12),"") -> mk3
A33: رقم الجلوس// | D33: =IF(T29<=MAX(تحكم!$A:$A),OFFSET(تحكم!$A$1,MATCH(T29,تحكم!$A:$A,0)-1,13),"") -> 7 | I33: الصف// | J33: =IF(T29<=MAX(تحكم!$A:$A),OFFSET(تحكم!$A$1,MATCH(T29,تحكم!$A:$A,0)-1,9),"") -> 0 | O33: التخصص// | P33: =IF(T29<=MAX(تحكم!$A:$A),OFFSET(تحكم!$A$1,MATCH(T29,تحكم!$A:$A,0)-1,16),"") -> 0
A34: لغة عربية | B34: لغة انجليزية | C34: رياضيات عامة | D34: فيزياء | E34: رسم فني | F34: فلسفة | G34: مواد وعمليات | H34: رياضة تخصصية | I34: تحكم هيدروليكي | K34: أساسيات حاسب | M34: نظم تحكم | O34: هندسة كهربية | P34: دوائر إلكترونية | Q34: تدريبات مهنية | R34: مجموع كلي | S34: تربية دينية
I35: نظري | J35: معمل | K35: معمل | L35: نظري | M35: معمل | N35: نظري
A36: 20 | B36: 20 | C36: 20 | D36: 20 | E36: 30 | F36: 20 | G36: 10 | H36: 20 | I36: 10 | J36: 5 | K36: 5 | L36: 15 | M36: 5 | N36: 15 | O36: 20 | P36: 15 | Q36: 60 | R36: 310 | S36: 10
A37: =IF(T29<=MAX(تحكم!$A:$A),OFFSET(تحكم!$A$1,MATCH(T29,تحكم!$A:$A,0)-1,A38),"") -> 16 | B37: =IF(T29<=MAX(تحكم!$A:$A),OFFSET(تحكم!$A$1,MATCH(T29,تحكم!$A:$A,0)-1,B38),"") -> 17.5 | C37: =IF(T29<=MAX(تحكم!$A:$A),OFFSET(تحكم!$A$1,MATCH(T29,تحكم!$A:$A,0)-1,C38),"") -> 16.5 | D37: =IF(T29<=MAX(تحكم!$A:$A),OFFSET(تحكم!$A$1,MATCH(T29,تحكم!$A:$A,0)-1,D38),"") -> 19.5 | E37: =IF(T29<=MAX(تحكم!$A:$A),OFFSET(تحكم!$A$1,MATCH(T29,تحكم!$A:$A,0)-1,E38),"") -> 21.5 | F37: =IF(T29<=MAX(تحكم!$A:$A),OFFSET(تحكم!$A$1,MATCH(T29,تحكم!$A:$A,0)-1,F38),"") -> 19 | G37: =IF(T29<=MAX(تحكم!$A:$A),OFFSET(تحكم!$A$1,MATCH(T29,تحكم!$A:$A,0)-1,G38),"") -> 6 | H37: =IF(T29<=MAX(تحكم!$A:$A),OFFSET(تحكم!$A$1,MATCH(T29,تحكم!$A:$A,0)-1,H38),"") -> 7.3 | I37: =IF(T29<=MAX(تحكم!$A:$A),OFFSET(تحكم!$A$1,MATCH(T29,تحكم!$A:$A,0)-1,I38),"") -> 8 | J37: =IF(T29<=MAX(تحكم!$A:$A),OFFSET(تحكم!$A$1,MATCH(T29,تحكم!$A:$A,0)-1,J38),"") -> 3.3 | K37: =IF(T29<=MAX(تحكم!$A:$A),OFFSET(تحكم!$A$1,MATCH(T29,تحكم!$A:$A,0)-1,K38),"") -> 2.7 | L37: =IF(T29<=MAX(تحكم!$A:$A),OFFSET(تحكم!$A$1,MATCH(T29,تحكم!$A:$A,0)-1,L38),"") -> 9 | M37: =IF(T29<=MAX(تحكم!$A:$A),OFFSET(تحكم!$A$1,MATCH(T29,تحكم!$A:$A,0)-1,M38),"") -> 3.3 | N37: =IF(T29<=MAX(تحكم!$A:$A),OFFSET(تحكم!$A$1,MATCH(T29,تحكم!$A:$A,0)-1,N38),"") -> 9.5 | O37: =IF(T29<=MAX(تحكم!$A:$A),OFFSET(تحكم!$A$1,MATCH(T29,تحكم!$A:$A,0)-1,O38),"") -> 13 | P37: =IF(T29<=MAX(تحكم!$A:$A),OFFSET(تحكم!$A$1,MATCH(T29,تحكم!$A:$A,0)-1,P38),"") -> 9.2 | Q37: =IF(T29<=MAX(تحكم!$A:$A),OFFSET(تحكم!$A$1,MATCH(T29,تحكم!$A:$A,0)-1,Q38),"") -> 47 | R37: =IF(T29<=MAX(تحكم!$A:$A),OFFSET(تحكم!$A$1,MATCH(T29,تحكم!$A:$A,0)-1,R38),"") -> 215.5 | S37: =IF(T29<=MAX(تحكم!$A:$A),OFFSET(تحكم!$A$1,MATCH(T29,تحكم!$A:$A,0)-1,S38),"") -> 8
A38: 23 | B38: 28 | C38: 38 | D38: 43 | E38: 48 | F38: 33 | G38: 53 | H38: 78 | I38: 68 | J38: 73 | K38: 63 | L38: 58 | M38: 98 | N38: 93 | O38: 83 | P38: 88 | Q38: 103 | R38: 104 | S38: 109
B39: رئيس الكنترول | N39: مدير إدارة المدرسة

Sheet تحكم
A1: S1 | J1: S2 | K1: S3 | M1: S5 | N1: S6 | O1: S7 | P1: S8 | Q1: S9 | R1: S10 | S1: S11 | T1: S12 | U1: S13 | V1: S14 | W1: S15 | X1: S16 | Y1: S17 | Z1: S18 | AA1: S19 | AB1: S20 | AC1: S21 | AD1: S22 | AE1: S23 | AF1: S24 | AG1: S25 | AH1: S26 | AI1: S27 | AJ1: S28 | AK1: S29 | AL1: S30 | AM1: S31 | AN1: S32 | AO1: S33 | AP1: S34 | AQ1: S35 | AR1: S36 | AS1: S37 | AT1: S38 | AU1: S39 | AV1: S40 | AW1: S41 | AX1: S42 | AY1: S43 | AZ1: S44 | BA1: S45 | BB1: S46 | BC1: S47 | BD1: S48 | BE1: S49 | BF1: S50 | BG1: S51 | BH1: S52 | BI1: S53 | BJ1: S54 | BK1: S55 | BL1: S56 | BM1: S57 | BN1: S58 | BO1: S59 | BP1: S60 | BQ1: S61 | BR1: S62 | BS1: S63 | BT1: S64 | BU1: S65 | BV1: S66 | BW1: S67 | BX1: S68 | BY1: S69 | BZ1: S70 | CA1: S71 | CB1: S72 | CC1: S73 | CD1: S74 | CE1: S75 | CF1: S76 | CG1: S77 | CH1: S78 | CI1: S79 | CJ1: S80 | CK1: S81 | CL1: S82 | CM1: S83 | CN1: S84 | CO1: S85 | CP1: S86 | CQ1: S87 | CR1: S88 | CS1: S89 | CT1: S90 | CU1: S91 | CV1: S92 | CW1: S93 | CX1: S94 | CY1: S95 | CZ1: S96 | DA1: S97 | DB1: S98 | DC1: S99 | DD1: s100 | DE1: s101 | DF1: s102 | DG1: s103 | DH1: s104 | DI1: s105 | DJ1: s106 | DK1: s107 | DL1: S108 | DM1: S109
B2: 10 | C2: 2017
C3: وزارة التربية والتعليم
C4: محافظة الشرقية
C5: إدارة ههيا التعليمية
C6: مدرسة ههيا الثانوية الصناعية بنات
A7: م | B7: تاريخ الميلاد | E7: الرقم القومى | F7: تاريخ الميلاد | G7: السن في 1/10/2017 | J7: الفصل | K7: اللجنة | M7: الاسم | N7: رقم الجلوس | O7: سري1 | P7: سري2 | Q7: التخصص | R7: الديانة | S7: مدة البقاء | T7: لغة عربية | Y7: لغة أجنبية | AD7: فلسفة ( القومية ) | AI7: رياضيات عامة | AN7: فيزياء عامة | AS7: رسم فني | AX7: مواد عمليات تشغيل | BC7: اساسيات حاسب | BH7: معمل اساسيات حاسب | BM7: تحكم هيدروليكى | BR7: معمل تحكم هيدرو ليكى | BW7: رياضة تخصصية | CB7: هندسة كهربية | CG7: دوائر الكترونية | CL7: نظم تحكم | CQ7: معمل نظم تحكم | CV7: تدريبات مهنية | DA7: مجموع كلي | DB7: تربية دينية | DG7: تربية رياضية | DL7: أنشطة | DQ7: نتيجة الطالبة | DR7: مواد الرسوب
T9: نصف العام | V9: آخر العام | X9: مجموع | Y9: نصف العام | AA9: آخر العام | AC9: مجموع | AD9: نصف العام | AF9: آخر العام | AH9: مجموع | AI9: نصف العام | AK9: آخر العام | AM9: مجموع | AN9: نصف العام | AP9: آخر العام | AR9: مجموع | AS9: نصف العام | AU9: آخر العام | AW9: مجموع | AX9: نصف العام | AZ9: آخر العام | BB9: مجموع | BC9: نصف العام | BE9: آخر العام | BG9: مجموع | BH9: نصف العام | BJ9: آخر العام | BL9: مجموع | BM9: نصف العام | BO9: آخر العام | BQ9: مجموع | BR9: نصف العام | BT9: آخر العام | BV9: مجموع | BW9: نصف العام | BY9: آخر العام | CA9: مجموع | CB9: نصف العام | CD9: آخر العام | CF9: مجموع | CG9: نصف العام | CI9: آخر العام | CK9: مجموع | CL9: نصف العام | CN9: آخر العام | CP9: مجموع | CQ9: نصف العام | CS9: آخر العام | CU9: مجموع | CV9: نصف العام | CX9: آخر العام | CZ9: مجموع | DB9: نصف العام | DD9: آخر العام | DF9: مجموع | DG9: نصف العام | DI9: آخر العام | DK9: مجموع | DL9: نصف العام | DN9: آخر العام | DP9: مجموع | DX9: البرمجة
T10: أعمال السنة | U10: امتحان | V10: أعمال السنة | W10: امتحان | Y10: أعمال السنة | Z10: امتحان | AA10: أعمال السنة | AB10: امتحان | AD10: أعمال السنة | AE10: امتحان | AF10: أعمال السنة | AG10: امتحان | AI10: أعمال السنة | AJ10: امتحان | AK10: أعمال السنة | AL10: امتحان | AN10: أعمال السنة | AO10: امتحان | AP10: أعمال السنة | AQ10: امتحان | AS10: أعمال السنة | AT10: امتحان | AU10: أعمال السنة | AV10: امتحان | AX10: أعمال السنة | AY10: امتحان | AZ10: أعمال السنة | BA10: امتحان | BC10: أعمال السنة | BD10: امتحان | BE10: أعمال السنة | BF10: امتحان | BH10: أعمال السنة | BI10: امتحان | BJ10: أعمال السنة | BK10: امتحان | BM10: أعمال السنة | BN10: امتحان | BO10: أعمال السنة | BP10: امتحان | BR10: أعمال السنة | BS10: امتحان | BT10: أعمال السنة | BU10: امتحان | BW10: أعمال السنة | BX10: امتحان | BY10: أعمال السنة | BZ10: امتحان | CB10: أعمال السنة | CC10: امتحان | CD10: أعمال السنة | CE10: امتحان | CG10: أعمال السنة | CH10: امتحان | CI10: أعمال السنة | CJ10: امتحان | CL10: أعمال السنة | CM10: امتحان | CN10: أعمال السنة | CO10: امتحان | CQ10: أعمال السنة | CR10: امتحان | CS10: أعمال السنة | CT10: امتحان | CV10: أعمال السنة | CW10: امتحان | CX10: أعمال السنة | CY10: امتحان | DB10: أعمال السنة | DC10: امتحان | DD10: أعمال السنة | DE10: امتحان | DG10: أعمال السنة | DH10: امتحان | DI10: أعمال السنة | DJ10: امتحان | DL10: أعمال السنة | DM10: امتحان | DN10: أعمال السنة | DO10: امتحان
T11: 4 | U11: 16 | V11: 4 | W11: 16 | X11: =W11+V11+U11+T11 -> 40 | Y11: 4 | Z11: 16 | AA11: 4 | AB11: 16 | AC11: =AB11+AA11+Z11+Y11 -> 40 | AD11: 4 | AE11: 16 | AF11: 4 | AG11: 16 | AH11: =AG11+AF11+AE11+AD11 -> 40 | AI11: 4 | AJ11: 16 | AK11: 4 | AL11: 16 | AM11: =AL11+AK11+AJ11+AI11 -> 40 | AN11: 4 | AO11: 16 | AP11: 4 | AQ11: 16 | AR11: 40 | AS11: 6 | AT11: 24 | AU11: 6 | AV11: 24 | AW11: =AV11+AU11+AT11+AS11 -> 60 | AX11: 2 | AY11: 8 | AZ11: 2 | BA11: 8 | BB11: =BA11+AZ11+AY11+AX11 -> 20 | BC11: 3 | BD11: 12 | BE11: 3 | BF11: 12 | BG11: =BF11+BE11+BD11+BC11 -> 30 | BH11: 1 | BI11: 4 | BJ11: 1 | BK11: 4 | BL11: =BK11+BJ11+BI11+BH11 -> 10 | BM11: 2 | BN11: 8 | BO11: 2 | BP11: 8 | BQ11: =BP11+BO11+BN11+BM11 -> 20 | BR11: 1 | BS11: 4 | BT11: 1 | BU11: 4 | BV11: =BU11+BT11+BS11+BR11 -> 10 | BW11: 4 | BX11: 16 | BY11: 4 | BZ11: 16 | CA11: =BZ11+BY11+BX11+BW11 -> 40 | CB11: 4 | CC11: 16 | CD11: 4 | CE11: 16 | CF11: =CE11+CD11+CC11+CB11 -> 40 | CG11: 3 | CH11: 12 | CI11: 3 | CJ11: 12 | CK11: =CJ11+CI11+CH11+CG11 -> 30 | CL11: 3 | CM11: 12 | CN11: 3 | CO11: 12 | CP11: =CO11+CN11+CM11+CL11 -> 30 | CQ11: 1 | CR11: 4 | CS11: 1 | CT11: 4 | CU11: =CT11+CS11+CR11+CQ11 -> 10 | CV11: 10 | CW11: 40 | CX11: 10 | CY11: 40 | CZ11: =CY11+CX11+CW11+CV11 -> 100 | DA11: =SUM(X11,AC11,AH11,AM11,AR11,AW11,BB11,BG11,BL11,BQ11,BV11,CA11,CF11,CK11,CZ11) -> 560 | DB11: 2 | DC11: 8 | DD11: 2 | DE11: 8 | DF11: =DE11+DD11+DC11+DB11 -> 20 | DG11: 2 | DH11: 8 | DI11: 2 | DJ11: 8 | DK11: =DJ11+DI11+DH11+DG11 -> 20 | DL11: 2 | DM11: 8 | DN11: 2 | DO11: 8 | DP11: =DO11+DN11+DM11+DL11 -> 20 | DT11: 1 | DU11: 2 | DV11: 3 | DW11: 4 | DX11: 5 | DY11: 6 | DZ11: 7 | EA11: 8 | EB11: 9 | EC11: 10 | ED11: 11 | EE11: 12 | EF11: 13 | EG11: 14 | EH11: 15 | EI11: 16 | EJ11: 17 | EK11: مواد النجاح
B12: يوم | C12: شهر | D12: سنة | G12: يوم | H12: شهر | I12: سنة | W12: =W11*1/4 -> 4 | X12: =X11*1/2 -> 20 | AB12: =AB11*1/4 -> 4 | AC12: =AC11*2/5 -> 16 | AG12: =AG11*1/4 -> 4 | AH12: =AH11*2/5 -> 16 | AL12: =AL11*1/4 -> 4 | AM12: 20 | AQ12: =AQ11*1/4 -> 4 | AR12: 20 | AV12: =AV11*1/4 -> 6 | AW12: =AW11*1/2 -> 30 | BA12: =BA11*1/4 -> 2 | BB12: =BB11*1/2 -> 10 | BF12: =BF11*1/4 -> 3 | BG12: =BG11*1/2 -> 15 | BK12: =BK11*1/4 -> 1 | BL12: =BL11*1/2 -> 5 | BP12: =BP11*1/4 -> 2 | BQ12: =BQ11*1/2 -> 10 | BU12: =BU11*1/4 -> 1 | BV12: =BV11*1/2 -> 5 | BZ12: =BZ11*1/4 -> 4 | CA12: =CA11*1/2 -> 20 | CE12: =CE11*1/4 -> 4 | CF12: =CF11*1/2 -> 20 | CJ12: =CJ11*1/4 -> 3 | CK12: =CK11*1/2 -> 15 | CO12: =CO11*1/4 -> 3 | CP12: =CP11*1/2 -> 15 | CT12: =CT11*1/4 -> 1 | CU12: =CU11*1/2 -> 5 | CY12: =CY11*1/4 -> 10 | CZ12: =CZ11*3/5 -> 60 | DA12: 282 | DE12: =DE11*1/4 -> 2 | DF12: =DF11*1/2 -> 10 | DJ12: =DJ11*1/4 -> 2 | DK12: =DK11*1/2 -> 10 | DO12: =DO11*1/4 -> 2 | DP12: =DP11*1/2 -> 10 | DT12: لغة عربية | DU12: لغة اجنبية | DV12: تربية قومية | DW12: رياضيات | DX12: علوم عامة | DY12: رسم فني | DZ12: مواد وعمليات تشغيل | EA12: مبادئ حاسب | EB12: عملي مبادئ حاسب | EC12: أمن صناعي | ED12: أجهزة قياس | EE12: معمل أجهزة قياس | EF12: مبادئ كهرباء | EG12: عناصر الكترونية | EH12: تدريبات مهنية | EI12: مجموع كلي | EJ12: تربية دينية
A13: =IF($M13="","",MAX($A$12:$A12)+1) -> 1 | B13: =IF(F13="","",DAY(F13)) -> 25 | C13: =IF(F13="","",MONTH(F13)) -> 7 | D13: =IF(F13="","",YEAR(F13)) -> 2000 | E13: 30007251300347 | F13: =IF(E13="","",DATE(IF(LEFT($E13,1)="2",MID($E13,2,2),"20"&MID($E13,2,2)),MID($E13,4,2),MID($E13,6,2))) -> 2000-07-25 | G13: =IF(OR(B13="",C13="",D13=""),"",DATEDIF(DATE(D13,C13,B13),DATE($C$2,$B$2,$A$2),"md")) -> 5 | H13: =IF(OR(B13="",C13="",D13=""),"",DATEDIF(DATE(D13,C13,B13),DATE($C$2,$B$2,$A$2),"YM")) -> 2 | I13: =IF(OR(B13="",C13="",D13=""),"",DATEDIF(DATE(D13,C13,B13),DATE($C$2,$B$2,$A$2),"Y")) -> 17 | J13: t1 | M13: mk1 | N13: 5 | Q13: / | T13: 4 | U13: 11 | X13: =IF(W13=0.1,0,T13+U13+V13+W13) -> 15 | Y13: 3.5 | Z13: 13 | AC13: =IF(AB13=0.1,0,Y13+Z13+AA13+AB13) -> 16.5 | AD13: 3 | AE13: 16 | AH13: =IF(AG13=0.1,0,AD13+AE13+AF13+AG13) -> 19 | AI13: 3 | AJ13: 13.5 | AM13: =IF(AL13=0.1,0,AI13+AJ13+AK13+AL13) -> 16.5 | AN13: 3.5 | AO13: 14 | AR13: =IF(AQ13=0.1,0,AN13+AO13+AP13+AQ13) -> 17.5 | AS13: 5 | AT13: 13 | AW13: =IF(AV13=0.1,0,AS13+AT13+AU13+AV13) -> 18 | AX13: 1.5 | AY13: 4 | BB13: =IF(BA13=0.1,0,AX13+AY13+AZ13+BA13) -> 5.5 | BC13: 2.5 | BD13: 1.5 | BG13: =IF(BF13=0.1,0,BC13+BD13+BE13+BF13) -> 4 | BH13: 0.7 | BI13: 2 | BL13: =IF(BK13=0.1,0,BH13+BI13+BJ13+BK13) -> 2.7 | BM13: 1.5 | BN13: 5 | BQ13: =IF(BP13=0.1,0,BM13+BN13+BO13+BP13) -> 6.5 | BR13: 0.8 | BS13: 2.1 | BV13: =IF(BU13=0.1,0,BR13+BS13+BT13+BU13) -> 2.9 | BW13: 3.3 | BX13: 6.5 | CA13: =IF(BZ13=0.1,0,BW13+BX13+BY13+BZ13) -> 9.8 | CB13: 3 | CC13: 8 | CF13: =IF(CE13=0.1,0,CB13+CC13+CD13+CE13) -> 11 | CG13: 2.2 | CH13: 5.5 | CK13: =IF(CJ13=0.1,0,CG13+CH13+CI13+CJ13) -> 7.7 | CL13: 2.5 | CM13: 5.5 | CP13: =IF(CO13=0.1,0,CL13+CM13+CN13+CO13) -> 8 | CQ13: 0.8 | CR13: 2.5 | CU13: =IF(CT13=0.1,0,CQ13+CR13+CS13+CT13) -> 3.3 | CV13: 8 | CW13: 38 | CZ13: =IF(CY13=0.1,0,CV13+CW13+CX13+CY13) -> 46 | DA13: 198.6 | DB13: 1.5 | DC13: 5 | DF13: =IF(DE13=0.1,0,DB13+DC13+DD13+DE13) -> 6.5 | DK13: =IF(DJ13=0.1,0,DG13+DH13+DI13+DJ13) -> 0 | DP13: =IF(DO13=0.1,0,DL13+DM13+DN13+DO13) -> 0 | DQ13: =IF(EL13=17,"ناجحة",IF(EK13<13,"راسبة","دور ثان")) -> راسبة | DR13: =CONCATENATE(DT13,DU13,DV13,DW13,DX13,DY13,DZ13,EA13,EB13,EC13,ED13,EE13,EF13,EG13,EH13,EI13,EJ13) -> *عربى *انجليزي *فلسفة *رياضيات *فيزياء *رسم فني *مواد وعمليات تشغيل *مبادئ حاسب *عملي مبادئ حاسب *أمن صناعي *أجهزة قياس *معمل أجهزة قياس *مبادئ كهرباء *عناصر الكترونية *تدريبات مهنية* مجموع كلى *دين | DT13: =IF(X13<X$12," *عربى",IF(W13<W$12," *عربى","")) -> *عربى | DU13: =IF(AC13<AC$12,"*انجليزي",IF(AB13<AB$12," *انجليزي","")) -> *انجليزي | DV13: =IF(AH13<AH$12," *فلسفة",IF(AG13<AG$12," *فلسفة","")) -> *فلسفة | DW13: =IF(AM13<15," *رياضيات",IF(AL13<3," *رياضيات","")) -> *رياضيات | DX13: =IF(AR13<AR$12," *فيزياء",IF(AQ13<AQ$12," *فيزياء","")) -> *فيزياء | DY13: =IF(AW13<AW$12," *رسم فني",IF(AV13<AV$12," *رسم فني","")) -> *رسم فني | DZ13: =IF(BB13<BB$12," *مواد وعمليات تشغيل",IF(BA13<BA$12," *مواد وعمليات تشغيل","")) -> *مواد وعمليات تشغيل | EA13: =IF(BG13<BG$12," *مبادئ حاسب",IF(BF13<BF$12," *مبادئ حاسب","")) -> *مبادئ حاسب | EB13: =IF(BL13<BL$12," *عملي مبادئ حاسب",IF(BK13<BK$12," *عملي مبادئ حاسب","")) -> *عملي مبادئ حاسب | EC13: =IF(BQ13<BQ$12," *أمن صناعي",IF(BP13<BP$12," *أمن صناعي","")) -> *أمن صناعي | ED13: =IF(BV13<BV$12," *أجهزة قياس",IF(BU13<BU$12," *أجهزة قياس","")) -> *أجهزة قياس | EE13: =IF(CA13<CA$12," *معمل أجهزة قياس",IF(BZ13<BZ$12," *معمل أجهزة قياس","")) -> *معمل أجهزة قياس | EF13: =IF(CF13<CF$12," *مبادئ كهرباء",IF(CE13<CE$12," *مبادئ كهرباء","")) -> *مبادئ كهرباء | EG13: =IF(CK13<CK$12," *عناصر الكترونية",IF(CJ13<CJ$12," *عناصر الكترونية","")) -> *عناصر الكترونية | EH13: =IF(CZ13<CZ$12," *تدريبات مهنية",IF(CY13<CY$12," *تدريبات مهنية","")) -> *تدريبات مهنية | EI13: =IF(DA13<DA$12,"* مجموع كلى","") -> * مجموع كلى | EJ13: =IF(DF13<DF$12," *دين",IF(DE13<DE$12," *دين","")) -> *دين | EK13: =COUNTBLANK(DT13:EH13) -> 0 | EL13: =COUNTBLANK(DT13:EJ13) -> 0
A14: =IF($M14="","",MAX($A$12:$A13)+1) -> 2 | B14: 27 | C14: 1 | D14: 2001 | E14: 30101271301508 | F14: 2001-01-27 | G14: 3 | H14: 8 | I14: 16 | M14: mk2 | N14: 6 | T14: 4 | U14: 13 | X14: 17 | Y14: 3.5 | Z14: 13 | AC14: 16.5 | AD14: 3 | AE14: 16 | AH14: 19 | AI14: 4 | AJ14: 13.5 | AM14: 17.5 | AN14: 3.5 | AO14: 16 | AR14: 19.5 | AS14: 5 | AT14: 17.5 | AW14: 22.5 | AX14: 1.5 | AY14: 5.5 | BB14: 7 | BC14: 2.5 | BD14: 7.5 | BG14: 10 | BH14: 0.7 | BI14: 2.5 | BL14: 3.2 | BM14: 1.5 | BN14: 6 | BQ14: 7.5 | BR14: 0.8 | BS14: 3 | BV14: 3.8 | BW14: 3.3 | BX14: 8 | CA14: 11.3 | CB14: 3 | CC14: 15 | CF14: 18 | CG14: 2.2 | CH14: 8.5 | CK14: 10.7 | CL14: 2.5 | CM14: 10 | CP14: 12.5 | CQ14: 0.8 | CR14: 3 | CU14: 3.8 | CV14: 8 | CW14: 38 | CZ14: 46 | DA14: 229.5 | DB14: 1.5 | DC14: 5.5 | DF14: 7 | DK14: 0 | DP14: 0 | DQ14: راسبة | DR14: *عربى *انجليزي *فلسفة *رياضيات *فيزياء *رسم فني *مواد وعمليات تشغيل *مبادئ حاسب *عملي مبادئ حاسب *أمن صناعي *أجهزة قياس *معمل أجهزة قياس *مبادئ كهرباء *عناصر الكترونية *تدريبات مهنية* مجموع كلى *دين | DT14: *عربى | DU14: *انجليزي | DV14: *فلسفة | DW14: *رياضيات | DX14: *فيزياء | DY14: *رسم فني | DZ14: *مواد وعمليات تشغيل | EA14: *مبادئ حاسب | EB14: *عملي مبادئ حاسب | EC14: *أمن صناعي | ED14: *أجهزة قياس | EE14: *معمل أجهزة قياس | EF14: *مبادئ كهرباء | EG14: *عناصر الكترونية | EH14: *تدريبات مهنية | EI14: * مجموع كلى | EJ14: *دين | EK14: 0 | EL14: 0
A15: =IF($M15="","",MAX($A$12:$A14)+1) -> 3 | B15: 19 | C15: 3 | D15: 2001 | E15: 30103191301542 | F15: 2001-03-19 | G15: 11 | H15: 6 | I15: 16 | M15: mk3 | N15: 7 | T15: 4 | U15: 12 | X15: 16 | Y15: 3.5 | Z15: 14 | AC15: 17.5 | AD15: 3 | AE15: 16 | AH15: 19 | AI15: 2.5 | AJ15: 14 | AM15: 16.5 | AN15: 3.5 | AO15: 16 | AR15: 19.5 | AS15: 5 | AT15: 16.5 | AW15: 21.5 | AX15: 1.5 | AY15: 4.5 | BB15: 6 | BC15: 2.5 | BD15: 6.5 | BG15: 9 | BH15: 0.7 | BI15: 2 | BL15: 2.7 | BM15: 1.5 | BN15: 6.5 | BQ15: 8 | BR15: 0.8 | BS15: 2.5 | BV15: 3.3 | BW15: 3.3 | BX15: 4 | CA15: 7.3 | CB15: 3.5 | CC15: 9.5 | CF15: 13 | CG15: 2.2 | CH15: 7 | CK15: 9.2 | CL15: 2.5 | CM15: 7 | CP15: 9.5 | CQ15: 0.8 | CR15: 2.5 | CU15: 3.3 | CV15: 8 | CW15: 39 | CZ15: 47 | DA15: 215.5 | DB15: 1.5 | DC15: 6.5 | DF15: 8 | DK15: 0 | DP15: 0 | DQ15: راسبة | DR15: *عربى *انجليزي *فلسفة *رياضيات *فيزياء *رسم فني *مواد وعمليات تشغيل *مبادئ حاسب *عملي مبادئ حاسب *أمن صناعي *أجهزة قياس *معمل أجهزة قياس *مبادئ كهرباء *عناصر الكترونية *تدريبات مهنية* مجموع كلى *دين | DT15: *عربى | DU15: *انجليزي | DV15: *فلسفة | DW15: *رياضيات | DX15: *فيزياء | DY15: *رسم فني | DZ15: *مواد وعمليات تشغيل | EA15: *مبادئ حاسب | EB15: *عملي مبادئ حاسب | EC15: *أمن صناعي | ED15: *أجهزة قياس | EE15: *معمل أجهزة قياس | EF15: *مبادئ كهرباء | EG15: *عناصر الكترونية | EH15: *تدريبات مهنية | EI15: * مجموع كلى | EJ15: *دين | EK15: 0 | EL15: 0
A16: =IF($M16="","",MAX($A$12:$A15)+1) -> 4 | B16: 18 | C16: 12 | D16: 2000 | E16: 30012181302405 | F16: 2000-12-18 | G16: 12 | H16: 9 | I16: 16 | M16: mk4 | N16: 8 | T16: 4 | U16: 13.5 | X16: 17.5 | Y16: 3.5 | Z16: 13 | AC16: 16.5 | AD16: 3 | AE16: 16 | AH16: 19 | AI16: 3 | AJ16: 11 | AM16: 14 | AN16: 3.5 | AO16: 15 | AR16: 18.5 | AS16: 5 | AT16: 15.5 | AW16: 20.5 | AX16: 1.5 | AY16: 4.5 | BB16: 6 | BC16: 2.5 | BD16: 6.5 | BG16: 9 | BH16: 0.7 | BI16: 3 | BL16: 3.7 | BM16: 1.5 | BN16: 3.5 | BQ16: 5 | BR16: 0.8 | BS16: 3.2 | BV16: 4 | BW16: 3.3 | BX16: 4.5 | CA16: 7.8 | CB16: 3 | CC16: 10 | CF16: 13 | CG16: 2.2 | CH16: 6.5 | CK16: 8.7 | CL16: 2.5 | CM16: 6.5 | CP16: 9 | CQ16: 0.8 | CR16: 3 | CU16: 3.8 | CV16: 8 | CW16: 39 | CZ16: 47 | DA16: 210.2 | DB16: 1.5 | DC16: 6 | DF16: 7.5 | DK16: 0 | DP16: 0 | DQ16: راسبة | DR16: *عربى *انجليزي *فلسفة *رياضيات *فيزياء *رسم فني *مواد وعمليات تشغيل *مبادئ حاسب *عملي مبادئ حاسب *أمن صناعي *أجهزة قياس *معمل أجهزة قياس *مبادئ كهرباء *عناصر الكترونية *تدريبات مهنية* مجموع كلى *دين | DT16: *عربى | DU16: *انجليزي | DV16: *فلسفة | DW16: *رياضيات | DX16: *فيزياء | DY16: *رسم فني | DZ16: *مواد وعمليات تشغيل | EA16: *مبادئ حاسب | EB16: *عملي مبادئ حاسب | EC16: *أمن صناعي | ED16: *أجهزة قياس | EE16: *معمل أجهزة قياس | EF16: *مبادئ كهرباء | EG16: *عناصر الكترونية | EH16: *تدريبات مهنية | EI16: * مجموع كلى | EJ16: *دين | EK16: 0 | EL16: 0
A17: =IF($M17="","",MAX($A$12:$A16)+1) -> 5 | B17: 15 | C17: 7 | D17: 2001 | E17: 30107151306741 | F17: 2001-07-15 | G17: 15 | H17: 2 | I17: 16 | M17: mk5 | N17: 9 | T17: 4 | U17: 11.5 | X17: 15.5 | Y17: 3.5 | Z17: 13.5 | AC17: 17 | AD17: 3 | AE17: 16 | AH17: 19 | AI17: 2.5 | AJ17: 14 | AM17: 16.5 | AN17: 3.5 | AO17: 14 | AR17: 17.5 | AS17: 5 | AT17: 16.5 | AW17: 21.5 | AX17: 1.5 | AY17: 3 | BB17: 4.5 | BC17: 2.5 | BD17: 3 | BG17: 5.5 | BH17: 0.7 | BI17: 2 | BL17: 2.7 | BM17: 1.5 | BN17: 5 | BQ17: 6.5 | BR17: 0.8 | BS17: 2.9 | BV17: 3.7 | BW17: 3.3 | BX17: 5.5 | CA17: 8.8 | CB17: 3.5 | CC17: 9 | CF17: 12.5 | CG17: 2.2 | CH17: 6 | CK17: 8.2 | CL17: 2.5 | CM17: 5.5 | CP17: 8 | CQ17: 0.8 | CR17: 2.5 | CU17: 3.3 | CV17: 8 | CW17: 39 | CZ17: 47 | DA17: 206.4 | DB17: 1.5 | DC17: 5.5 | DF17: 7 | DK17: 0 | DP17: 0 | DQ17: راسبة | DR17: *عربى *انجليزي *فلسفة *رياضيات *فيزياء *رسم فني *مواد وعمليات تشغيل *مبادئ حاسب *عملي مبادئ حاسب *أمن صناعي *أجهزة قياس *معمل أجهزة قياس *مبادئ كهرباء *عناصر الكترونية *تدريبات مهنية* مجموع كلى *دين | DT17: *عربى | DU17: *انجليزي | DV17: *فلسفة | DW17: *رياضيات | DX17: *فيزياء | DY17: *رسم فني | DZ17: *مواد وعمليات تشغيل | EA17: *مبادئ حاسب | EB17: *عملي مبادئ حاسب | EC17: *أمن صناعي | ED17: *أجهزة قياس | EE17: *معمل أجهزة قياس | EF17: *مبادئ كهرباء | EG17: *عناصر الكترونية | EH17: *تدريبات مهنية | EI17: * مجموع كلى | EJ17: *دين | EK17: 0 | EL17: 0
A18: =IF($M18="","",MAX($A$12:$A17)+1) -> 6 | B18: 1 | C18: 6 | D18: 2001 | E18: 30106011302561 | F18: 2001-06-01 | G18: 29 | H18: 3 | I18: 16 | M18: mk6 | N18: 10 | T18: 4 | U18: 11.5 | X18: 15.5 | Y18: 3.5 | Z18: 13 | AC18: 16.5 | AD18: 3 | AE18: 16 | AH18: 19 | AI18: 2 | AJ18: 13 | AM18: 15 | AN18: 3.5 | AO18: 15 | AR18: 18.5 | AS18: 5 | AT18: 19.5 | AW18: 24.5 | AX18: 1.5 | AY18: 2 | BB18: 3.5 | BC18: 2.5 | BD18: 8.5 | BG18: 11 | BH18: 0.7 | BI18: 2.5 | BL18: 3.2 | BM18: 1.5 | BN18: 7 | BQ18: 8.5 | BR18: 0.8 | BS18: 3.2 | BV18: 4 | BW18: 3.3 | BX18: 9 | CA18: 12.3 | CB18: 3.5 | CC18: 15.5 | CF18: 19 | CG18: 2.2 | CH18: 6.5 | CK18: 8.7 | CL18: 2.5 | CM18: 6 | CP18: 8.5 | CQ18: 0.8 | CR18: 3 | CU18: 3.8 | CV18: 8 | CW18: 38 | CZ18: 46 | DA18: 225.2 | DB18: 1.5 | DC18: 5.5 | DF18: 7 | DK18: 0 | DP18: 0 | DQ18: راسبة | DR18: *عربى *انجليزي *فلسفة *رياضيات *فيزياء *رسم فني *مواد وعمليات تشغيل *مبادئ حاسب *عملي مبادئ حاسب *أمن صناعي *أجهزة قياس *معمل أجهزة قياس *مبادئ كهرباء *عناصر الكترونية *تدريبات مهنية* مجموع كلى *دين | DT18: *عربى | DU18: *انجليزي | DV18: *فلسفة | DW18: *رياضيات | DX18: *فيزياء | DY18: *رسم فني | DZ18: *مواد وعمليات تشغيل | EA18: *مبادئ حاسب | EB18: *عملي مبادئ حاسب | EC18: *أمن صناعي | ED18: *أجهزة قياس | EE18: *معمل أجهزة قياس | EF18: *مبادئ كهرباء | EG18: *عناصر الكترونية | EH18: *تدريبات مهنية | EI18: * مجموع كلى | EJ18: *دين | EK18: 0 | EL18: 0
A19: =IF($M19="","",MAX($A$12:$A18)+1) -> 7 | B19: 1 | C19: 1 | D19: 2000 | E19: 30001011348204 | F19: 2000-01-01 | G19: 29 | H19: 8 | I19: 17 | M19: mk7 | N19: 11 | T19: 4 | U19: 11 | X19: 15 | Y19: 3.5 | Z19: 11.5 | AC19: 15 | AD19: 3 | AE19: 15 | AH19: 18 | AI19: 1.5 | AJ19: 11 | AM19: 12.5 | AN19: 3.5 | AO19: 14 | AR19: 17.5 | AS19: 5 | AT19: 8.5 | AW19: 13.5 | AX19: 1.5 | AY19: 2.5 | BB19: 4 | BC19: 2.5 | BD19: 1 | BG19: 3.5 | BH19: 0.7 | BI19: 3 | BL19: 3.7 | BM19: 1.5 | BN19: 4 | BQ19: 5.5 | BR19: 0.8 | BS19: 2.6 | BV19: 3.4 | BW19: 3.3 | BX19: 3 | CA19: 6.3 | CB19: 3.5 | CC19: 8 | CF19: 11.5 | CG19: 2.2 | CH19: 6 | CK19: 8.2 | CL19: 2.5 | CM19: 5.5 | CP19: 8 | CQ19: 0.8 | CR19: 2.5 | CU19: 3.3 | CV19: 8 | CW19: 38 | CZ19: 46 | DA19: 183.6 | DB19: 1.5 | DC19: 6 | DF19: 7.5 | DK19: 0 | DP19: 0 | DQ19: راسبة | DR19: *عربى*انجليزي *فلسفة *رياضيات *فيزياء *رسم فني *مواد وعمليات تشغيل *مبادئ حاسب *عملي مبادئ حاسب *أمن صناعي *أجهزة قياس *معمل أجهزة قياس *مبادئ كهرباء *عناصر الكترونية *تدريبات مهنية* مجموع كلى *دين | DT19: *عربى | DU19: *انجليزي | DV19: *فلسفة | DW19: *رياضيات | DX19: *فيزياء | DY19: *رسم فني | DZ19: *مواد وعمليات تشغيل | EA19: *مبادئ حاسب | EB19: *عملي مبادئ حاسب | EC19: *أمن صناعي | ED19: *أجهزة قياس | EE19: *معمل أجهزة قياس | EF19: *مبادئ كهرباء | EG19: *عناصر الكترونية | EH19: *تدريبات مهنية | EI19: * مجموع كلى | EJ19: *دين | EK19: 0 | EL19: 0
A20: =IF($M20="","",MAX($A$12:$A19)+1) -> 8 | B20: 5 | C20: 1 | D20: 2001 | E20: 30101051301809 | F20: 2001-01-05 | G20: 25 | H20: 8 | I20: 16 | M20: mk8 | N20: 12 | T20: 4 | U20: 11.5 | X20: 15.5 | Y20: 3.5 | Z20: 13 | AC20: 16.5 | AD20: 3 | AE20: 16 | AH20: 19 | AI20: 4 | AJ20: 13.5 | AM20: 17.5 | AN20: 3.5 | AO20: 13 | AR20: 16.5 | AS20: 5 | AT20: 16 | AW20: 21 | AX20: 1.5 | AY20: 2.5 | BB20: 4 | BC20: 2.5 | BD20: 8 | BG20: 10.5 | BH20: 0.7 | BI20: 2.5 | BL20: 3.2 | BM20: 1.5 | BN20: 7.5 | BQ20: 9 | BR20: 0.8 | BS20: 2.9 | BV20: 3.7 | BW20: 3.3 | BX20: 7 | CA20: 10.3 | CB20: 3.5 | CC20: 9.5 | CF20: 13 | CG20: 2.2 | CH20: 6 | CK20: 8.2 | CL20: 2.5 | CM20: 5.5 | CP20: 8 | CQ20: 0.8 | CR20: 3 | CU20: 3.8 | CV20: 8 | CW20: 39 | CZ20: 47 | DA20: 214.9 | DB20: 1.5 | DC20: 6.5 | DF20: 8 | DK20: 0 | DP20: 0 | DQ20: راسبة | DR20: *عربى *انجليزي *فلسفة *رياضيات *فيزياء *رسم فني *مواد وعمليات تشغيل *مبادئ حاسب *عملي مبادئ حاسب *أمن صناعي *أجهزة قياس *معمل أجهزة قياس *مبادئ كهرباء *عناصر الكترونية *تدريبات مهنية* مجموع كلى *دين | DT20: *عربى | DU20: *انجليزي | DV20: *فلسفة | DW20: *رياضيات | DX20: *فيزياء | DY20: *رسم فني | DZ20: *مواد وعمليات تشغيل | EA20: *مبادئ حاسب | EB20: *عملي مبادئ حاسب | EC20: *أمن صناعي | ED20: *أجهزة قياس | EE20: *معمل أجهزة قياس | EF20: *مبادئ كهرباء | EG20: *عناصر الكترونية | EH20: *تدريبات مهنية | EI20: * مجموع كلى | EJ20: *دين | EK20: 0 | EL20: 0
A21: =IF($M21="","",MAX($A$12:$A20)+1) -> 9 | B21: 14 | C21: 2 | D21: 2001 | E21: 30102141300549 | F21: 2001-02-14 | G21: 16 | H21: 7 | I21: 16 | M21: mk9 | N21: 13 | T21: 4 | U21: 10.5 | X21: 14.5 | Y21: 3.5 | Z21: 10.5 | AC21: 14 | AD21: 3 | AE21: 16 | AH21: 19 | AI21: 1.5 | AJ21: 11.5 | AM21: 13 | AN21: 3.5 | AO21: 13 | AR21: 16.5 | AS21: 5 | AT21: 13.5 | AW21: 18.5 | AX21: 1.5 | AY21: 3 | BB21: 4.5 | BC21: 2.5 | BD21: 5 | BG21: 7.5 | BH21: 0.7 | BI21: 2.5 | BL21: 3.2 | BM21: 1.5 | BN21: 3.5 | BQ21: 5 | BR21: 0.8 | BS21: 3 | BV21: 3.8 | BW21: 3.3 | BX21: 2.5 | CA21: 5.8 | CB21: 3.5 | CC21: 8 | CF21: 11.5 | CG21: 2.2 | CH21: 5.5 | CK21: 7.7 | CL21: 2.5 | CM21: 5 | CP21: 7.5 | CQ21: 0.8 | CR21: 2.5 | CU21: 3.3 | CV21: 8 | CW21: 39 | CZ21: 47 | DA21: 191.5 | DB21: 1.5 | DC21: 4 | DF21: 5.5 | DK21: 0 | DP21: 0 | DQ21: راسبة | DR21: *عربى*انجليزي *فلسفة *رياضيات *فيزياء *رسم فني *مواد وعمليات تشغيل *مبادئ حاسب *عملي مبادئ حاسب *أمن صناعي *أجهزة قياس *معمل أجهزة قياس *مبادئ كهرباء *عناصر الكترونية *تدريبات مهنية* مجموع كلى *دين | DT21: *عربى | DU21: *انجليزي | DV21: *فلسفة | DW21: *رياضيات | DX21: *فيزياء | DY21: *رسم فني | DZ21: *مواد وعمليات تشغيل | EA21: *مبادئ حاسب | EB21: *عملي مبادئ حاسب | EC21: *أمن صناعي | ED21: *أجهزة قياس | EE21: *معمل أجهزة قياس | EF21: *مبادئ كهرباء | EG21: *عناصر الكترونية | EH21: *تدريبات مهنية | EI21: * مجموع كلى | EJ21: *دين | EK21: 0 | EL21: 0
A22: =IF($M22="","",MAX($A$12:$A21)+1) -> 10 | B22: 1 | C22: 10 | D22: 2001 | E22: 30110011338326 | F22: 2001-10-01 | G22: 29 | H22: 11 | I22: 15 | M22: mk10 | N22: 14 | T22: 4 | U22: 11.5 | X22: 15.5 | Y22: 3.5 | Z22: 11 | AC22: 14.5 | AD22: 3 | AE22: 16 | AH22: 19 | AI22: 4 | AJ22: 13.5 | AM22: 17.5 | AN22: 3.5 | AO22: 13 | AR22: 16.5 | AS22: 5 | AT22: 17 | AW22: 22 | AX22: 1.5 | AY22: 2 | BB22: 3.5 | BC22: 2.5 | BD22: 9.5 | BG22: 12 | BH22: 0.7 | BI22: 2.5 | BL22: 3.2 | BM22: 1.5 | BN22: 7.5 | BQ22: 9 | BR22: 0.8 | BS22: 3.3 | BV22: 4.1 | BW22: 3.3 | BX22: 7.5 | CA22: 10.8 | CB22: 3.5 | CC22: 11.5 | CF22: 15 | CG22: 2.2 | CH22: 8 | CK22: 10.2 | CL22: 2.5 | CM22: 5.5 | CP22: 8 | CQ22: 0.8 | CR22: 3 | CU22: 3.8 | CV22: 8 | CW22: 38 | CZ22: 46 | DA22: 218.8 | DB22: 1.5 | DC22: 6.5 | DF22: 8 | DK22: 0 | DP22: 0 | DQ22: راسبة | DR22: *عربى*انجليزي *فلسفة *رياضيات *فيزياء *رسم فني *مواد وعمليات تشغيل *مبادئ حاسب *عملي مبادئ حاسب *أمن صناعي *أجهزة قياس *معمل أجهزة قياس *مبادئ كهرباء *عناصر الكترونية *تدريبات مهنية* مجموع كلى *دين | DT22: *عربى | DU22: *انجليزي | DV22: *فلسفة | DW22: *رياضيات | DX22: *فيزياء | DY22: *رسم فني | DZ22: *مواد وعمليات تشغيل | EA22: *مبادئ حاسب | EB22: *عملي مبادئ حاسب | EC22: *أمن صناعي | ED22: *أجهزة قياس | EE22: *معمل أجهزة قياس | EF22: *مبادئ كهرباء | EG22: *عناصر الكترونية | EH22: *تدريبات مهنية | EI22: * مجموع كلى | EJ22: *دين | EK22: 0 | EL22: 0
A23: =IF($M23="","",MAX($A$12:$A22)+1) -> 11 | B23: 15 | C23: 9 | D23: 2001 | E23: 30109151311586 | F23: 2001-09-15 | G23: 15 | H23: 0 | I23: 16 | M23: mk11 | N23: 15 | T23: 4 | U23: 11 | X23: 15 | Y23: 3.5 | Z23: 11 | AC23: 14.5 | AD23: 3 | AE23: 15 | AH23: 18 | AI23: 2.5 | AJ23: 11 | AM23: 13.5 | AN23: 3.5 | AO23: 13 | AR23: 16.5 | AS23: 5 | AT23: 10 | AW23: 15 | AX23: 1.5 | AY23: 2.5 | BB23: 4 | BC23: 2.5 | BD23: 2.5 | BG23: 5 | BH23: 0.7 | BI23: 3 | BL23: 3.7 | BM23: 1.5 | BN23: 4.5 | BQ23: 6 | BR23: 0.8 | BS23: 2.8 | BV23: 3.6 | BW23: 3.3 | BX23: 3.5 | CA23: 6.8 | CB23: 3 | CC23: 9 | CF23: 12 | CG23: 2.2 | CH23: 6 | CK23: 8.2 | CL23: 2.5 | CM23: 5.5 | CP23: 8 | CQ23: 0.8 | CR23: 2.5 | CU23: 3.3 | CV23: 8 | CW23: 39 | CZ23: 47 | DA23: 188.8 | DB23: 1.5 | DC23: 6 | DF23: 7.5 | DK23: 0 | DP23: 0 | DQ23: راسبة | DR23: *عربى*انجليزي *فلسفة *رياضيات *فيزياء *رسم فني *مواد وعمليات تشغيل *مبادئ حاسب *عملي مبادئ حاسب *أمن صناعي *أجهزة قياس *معمل أجهزة قياس *مبادئ كهرباء *عناصر الكترونية *تدريبات مهنية* مجموع كلى *دين | DT23: *عربى | DU23: *انجليزي | DV23: *فلسفة | DW23: *رياضيات | DX23: *فيزياء | DY23: *رسم فني | DZ23: *مواد وعمليات تشغيل | EA23: *مبادئ حاسب | EB23: *عملي مبادئ حاسب | EC23: *أمن صناعي | ED23: *أجهزة قياس | EE23: *معمل أجهزة قياس | EF23: *مبادئ كهرباء | EG23: *عناصر الكترونية | EH23: *تدريبات مهنية | EI23: * مجموع كلى | EJ23: *دين | EK23: 0 | EL23: 0
A24: =IF($M24="","",MAX($A$12:$A23)+1) -> 12 | B24: 20 | C24: 6 | D24: 2001 | E24: 30106201300506 | F24: 2001-06-20 | G24: 10 | H24: 3 | I24: 16 | M24: mk12 | N24: 16 | T24: 4 | U24: 13 | X24: 17 | Y24: 3.5 | Z24: 11 | AC24: 14.5 | AD24: 3 | AE24: 16 | AH24: 19 | AI24: 4 | AJ24: 14.5 | AM24: 18.5 | AN24: 3.5 | AO24: 14.5 | AR24: 18 | AS24: 5 | AT24: 20.5 | AW24: 25.5 | AX24: 1.5 | AY24: 6 | BB24: 7.5 | BC24: 2.5 | BD24: 9 | BG24: 11.5 | BH24: 0.7 | BI24: 3 | BL24: 3.7 | BM24: 1.5 | BN24: 7.5 | BQ24: 9 | BR24: 0.8 | BS24: 3.4 | BV24: 4.2 | BW24: 3.3 | BX24: 10.5 | CA24: 13.8 | CB24: 3.5 | CC24: 14 | CF24: 17.5 | CG24: 2.2 | CH24: 8.5 | CK24: 10.7 | CL24: 2.5 | CM24: 8.5 | CP24: 11 | CQ24: 0.8 | CR24: 3 | CU24: 3.8 | CV24: 8 | CW24: 38 | CZ24: 46 | DA24: 236.4 | DB24: 1.5 | DC24: 5.5 | DF24: 7 | DK24: 0 | DP24: 0 | DQ24: راسبة | DR24: *عربى*انجليزي *فلسفة *رياضيات *فيزياء *رسم فني *مواد وعمليات تشغيل *مبادئ حاسب *عملي مبادئ حاسب *أمن صناعي *أجهزة قياس *معمل أجهزة قياس *مبادئ كهرباء *عناصر الكترونية *تدريبات مهنية* مجموع كلى *دين | DT24: *عربى | DU24: *انجليزي | DV24: *فلسفة | DW24: *رياضيات | DX24: *فيزياء | DY24: *رسم فني | DZ24: *مواد وعمليات تشغيل | EA24: *مبادئ حاسب | EB24: *عملي مبادئ حاسب | EC24: *أمن صناعي | ED24: *أجهزة قياس | EE24: *معمل أجهزة قياس | EF24: *مبادئ كهرباء | EG24: *عناصر الكترونية | EH24: *تدريبات مهنية | EI24: * مجموع كلى | EJ24: *دين | EK24: 0 | EL24: 0
A25: =IF($M25="","",MAX($A$12:$A24)+1) -> 13 | B25: 29 | C25: 1 | D25: 2001 | E25: 30101291300907 | F25: 2001-01-29 | G25: 1 | H25: 8 | I25: 16 | M25: mk13 | N25: 17 | T25: 4 | U25: 11 | X25: 15 | Y25: 3.5 | Z25: 12 | AC25: 15.5 | AD25: 3 | AE25: 16 | AH25: 19 | AI25: 4 | AJ25: 14.5 | AM25: 18.5 | AN25: 3.5 | AO25: 10 | AR25: 13.5 | AS25: 5 | AT25: 14 | AW25: 19 | AX25: 1.5 | AY25: 3.5 | BB25: 5 | BC25: 2.5 | BD25: 8 | BG25: 10.5 | BH25: 0.7 | BI25: 3 | BL25: 3.7 | BM25: 1.5 | BN25: 7.5 | BQ25: 9 | BR25: 0.8 | BS25: 3.3 | BV25: 4.1 | BW25: 3.3 | BX25: 8.5 | CA25: 11.8 | CB25: 3.5 | CC25: 10 | CF25: 13.5 | CG25: 2.2 | CH25: 9 | CK25: 11.2 | CL25: 2.5 | CM25: 7 | CP25: 9.5 | CQ25: 0.8 | CR25: 3 | CU25: 3.8 | CV25: 8 | CW25: 37 | CZ25: 45 | DA25: 214.3 | DB25: 1.5 | DC25: 8 | DF25: 9.5 | DK25: 0 | DP25: 0 | DQ25: راسبة | DR25: *عربى*انجليزي *فلسفة *رياضيات *فيزياء *رسم فني *مواد وعمليات تشغيل *مبادئ حاسب *عملي مبادئ حاسب *أمن صناعي *أجهزة قياس *معمل أجهزة قياس *مبادئ كهرباء *عناصر الكترونية *تدريبات مهنية* مجموع كلى *دين | DT25: *عربى | DU25: *انجليزي | DV25: *فلسفة | DW25: *رياضيات | DX25: *فيزياء | DY25: *رسم فني | DZ25: *مواد وعمليات تشغيل | EA25: *مبادئ حاسب | EB25: *عملي مبادئ حاسب | EC25: *أمن صناعي | ED25: *أجهزة قياس | EE25: *معمل أجهزة قياس | EF25: *مبادئ كهرباء | EG25: *عناصر الكترونية | EH25: *تدريبات مهنية | EI25: * مجموع كلى | EJ25: *دين | EK25: 0 | EL25: 0
A26: =IF($M26="","",MAX($A$12:$A25)+1) -> 14 | B26: 1 | C26: 11 | D26: 2000 | E26: 30011011316545 | F26: 2000-11-01 | G26: 29 | H26: 10 | I26: 16 | M26: mk14 | N26: 18 | T26: 4 | U26: 10 | X26: 14 | Y26: 3.5 | Z26: 8.5 | AC26: 12 | AD26: 3 | AE26: 15 | AH26: 18 | AI26: 3 | AJ26: 11.5 | AM26: 14.5 | AN26: 3.5 | AO26: 13 | AR26: 16.5 | AS26: 5 | AT26: 16.5 | AW26: 21.5 | AX26: 1.5 | AY26: 4 | BB26: 5.5 | BC26: 2.5 | BD26: 4 | BG26: 6.5 | BH26: 0.7 | BI26: 2.5 | BL26: 3.2 | BM26: 1.5 | BN26: 3 | BQ26: 4.5 | BR26: 0.8 | BS26: 3.1 | BV26: 3.9 | BW26: 3.3 | BX26: 4 | CA26: 7.3 | CB26: 3.5 | CC26: 12 | CF26: 15.5 | CG26: 2.2 | CH26: 6.5 | CK26: 8.7 | CL26: 2.5 | CM26: 6.5 | CP26: 9 | CQ26: 0.8 | CR26: 2.5 | CU26: 3.3 | CV26: 8 | CW26: 39 | CZ26: 47 | DA26: 198.6 | DB26: 1.5 | DC26: 4.5 | DF26: 6 | DK26: 0 | DP26: 0 | DQ26: راسبة | DR26: *عربى*انجليزي *فلسفة *رياضيات *فيزياء *رسم فني *مواد وعمليات تشغيل *مبادئ حاسب *عملي مبادئ حاسب *أمن صناعي *أجهزة قياس *معمل أجهزة قياس *مبادئ كهرباء *عناصر الكترونية *تدريبات مهنية* مجموع كلى *دين | DT26: *عربى | DU26: *انجليزي | DV26: *فلسفة | DW26: *رياضيات | DX26: *فيزياء | DY26: *رسم فني | DZ26: *مواد وعمليات تشغيل | EA26: *مبادئ حاسب | EB26: *عملي مبادئ حاسب | EC26: *أمن صناعي | ED26: *أجهزة قياس | EE26: *معمل أجهزة قياس | EF26: *مبادئ كهرباء | EG26: *عناصر الكترونية | EH26: *تدريبات مهنية | EI26: * مجموع كلى | EJ26: *دين | EK26: 0 | EL26: 0
A27: =IF($M27="","",MAX($A$12:$A26)+1) -> 15 | B27: 1 | C27: 7 | D27: 2001 | E27: 30107011318561 | F27: 2001-07-01 | G27: 29 | H27: 2 | I27: 16 | M27: mk15 | N27: 19 | T27: 4 | U27: 13.5 | X27: 17.5 | Y27: 3.5 | Z27: 9.5 | AC27: 13 | AD27: 3 | AE27: 16 | AH27: 19 | AI27: 3 | AJ27: 15.5 | AM27: 18.5 | AN27: 3.5 | AO27: 14.5 | AR27: 18 | AS27: 5 | AT27: 15 | AW27: 20 | AX27: 1.5 | AY27: 4.5 | BB27: 6 | BC27: 2.5 | BD27: 5 | BG27: 7.5 | BH27: 0.7 | BI27: 3 | BL27: 3.7 | BM27: 1.5 | BN27: 3.5 | BQ27: 5 | BR27: 0.8 | BS27: 3 | BV27: 3.8 | BW27: 3.2 | BX27: 4.5 | CA27: 7.7 | CB27: 3.5 | CC27: 10.5 | CF27: 14 | CG27: 2.5 | CH27: 9 | CK27: 11.5 | CL27: 2.5 | CM27: 6 | CP27: 8.5 | CQ27: 0.8 | CR27: 3 | CU27: 3.8 | CV27: 8 | CW27: 38 | CZ27: 46 | DA27: 211.2 | DB27: 1.5 | DC27: 6 | DF27: 7.5 | DK27: 0 | DP27: 0 | DQ27: راسبة | DR27: *عربى*انجليزي *فلسفة *رياضيات *فيزياء *رسم فني *مواد وعمليات تشغيل *مبادئ حاسب *عملي مبادئ حاسب *أمن صناعي *أجهزة قياس *معمل أجهزة قياس *مبادئ كهرباء *عناصر الكترونية *تدريبات مهنية* مجموع كلى *دين | DT27: *عربى | DU27: *انجليزي | DV27: *فلسفة | DW27: *رياضيات | DX27: *فيزياء | DY27: *رسم فني | DZ27: *مواد وعمليات تشغيل | EA27: *مبادئ حاسب | EB27: *عملي مبادئ حاسب | EC27: *أمن صناعي | ED27: *أجهزة قياس | EE27: *معمل أجهزة قياس | EF27: *مبادئ كهرباء | EG27: *عناصر الكترونية | EH27: *تدريبات مهنية | EI27: * مجموع كلى | EJ27: *دين | EK27: 0 | EL27: 0
A28: =IF($M28="","",MAX($A$12:$A27)+1) -> 16 | B28: 10 | C28: 2 | D28: 2001 | E28: 30102101305327 | F28: 2001-02-10 | G28: 20 | H28: 7 | I28: 16 | M28: mk16 | N28: 20 | T28: 4 | U28: 12 | X28: 16 | Y28: 3.5 | Z28: 11 | AC28: 14.5 | AD28: 3 | AE28: 16 | AH28: 19 | AI28: 2.5 | AJ28: 13.5 | AM28: 16 | AN28: 3.5 | AO28: 13 | AR28: 16.5 | AS28: 5 | AT28: 14 | AW28: 19 | AX28: 1.5 | AY28: 3.5 | BB28: 5 | BC28: 2.5 | BD28: 6 | BG28: 8.5 | BH28: 0.7 | BI28: 2 | BL28: 2.7 | BM28: 1.5 | BN28: 4.5 | BQ28: 6 | BR28: 0.8 | BS28: 3 | BV28: 3.8 | BW28: 3.2 | BX28: 5.5 | CA28: 8.7 | CB28: 3.5 | CC28: 10 | CF28: 13.5 | CG28: 2.5 | CH28: 5.5 | CK28: 8 | CL28: 2.5 | CM28: 5 | CP28: 7.5 | CQ28: 0.8 | CR28: 3 | CU28: 3.8 | CV28: 8 | CW28: 39 | CZ28: 47 | DA28: 204.2 | DB28: 1.5 | DC28: 6 | DF28: 7.5 | DK28: 0 | DP28: 0 | DQ28: راسبة | DR28: *عربى*انجليزي *فلسفة *رياضيات *فيزياء *رسم فني *مواد وعمليات تشغيل *مبادئ حاسب *عملي مبادئ حاسب *أمن صناعي *أجهزة قياس *معمل أجهزة قياس *مبادئ كهرباء *عناصر الكترونية *تدريبات مهنية* مجموع كلى *دين | DT28: *عربى | DU28: *انجليزي | DV28: *فلسفة | DW28: *رياضيات | DX28: *فيزياء | DY28: *رسم فني | DZ28: *مواد وعمليات تشغيل | EA28: *مبادئ حاسب | EB28: *عملي مبادئ حاسب | EC28: *أمن صناعي | ED28: *أجهزة قياس | EE28: *معمل أجهزة قياس | EF28: *مبادئ كهرباء | EG28: *عناصر الكترونية | EH28: *تدريبات مهنية | EI28: * مجموع كلى | EJ28: *دين | EK28: 0 | EL28: 0
A29: =IF($M29="","",MAX($A$12:$A28)+1) -> 17 | B29: 1 | C29: 2 | D29: 2001 | E29: 30102011311905 | F29: 2001-02-01 | G29: 29 | H29: 7 | I29: 16 | M29: mk17 | N29: 21 | T29: 4 | U29: 12.5 | X29: 16.5 | Y29: 3.5 | Z29: 13 | AC29: 16.5 | AD29: 3 | AE29: 16 | AH29: 19 | AI29: 3 | AJ29: 13.5 | AM29: 16.5 | AN29: 3.5 | AO29: 15 | AR29: 18.5 | AS29: 5 | AT29: 9 | AW29: 14 | AX29: 1.5 | AY29: 4 | BB29: 5.5 | BC29: 2.5 | BD29: 2 | BG29: 4.5 | BH29: 0.7 | BI29: 3 | BL29: 3.7 | BM29: 1.5 | BN29: 3.5 | BQ29: 5 | BR29: 0.8 | BS29: 2.8 | BV29: 3.6 | BW29: 3.2 | BX29: 3 | CA29: 6.2 | CB29: 3.5 | CC29: 10 | CF29: 13.5 | CG29: 2.5 | CH29: 5.5 | CK29: 8 | CL29: 2.5 | CM29: 4 | CP29: 6.5 | CQ29: 0.8 | CR29: 2.5 | CU29: 3.3 | CV29: 8 | CW29: 38 | CZ29: 46 | DA29: 197 | DB29: 1.5 | DC29: 6 | DF29: 7.5 | DK29: 0 | DP29: 0 | DQ29: راسبة | DR29: *عربى *انجليزي *فلسفة *رياضيات *فيزياء *رسم فني *مواد وعمليات تشغيل *مبادئ حاسب *عملي مبادئ حاسب *أمن صناعي *أجهزة قياس *معمل أجهزة قياس *مبادئ كهرباء *عناصر الكترونية *تدريبات مهنية* مجموع كلى *دين | DT29: *عربى | DU29: *انجليزي | DV29: *فلسفة | DW29: *رياضيات | DX29: *فيزياء | DY29: *رسم فني | DZ29: *مواد وعمليات تشغيل | EA29: *مبادئ حاسب | EB29: *عملي مبادئ حاسب | EC29: *أمن صناعي | ED29: *أجهزة قياس | EE29: *معمل أجهزة قياس | EF29: *مبادئ كهرباء | EG29: *عناصر الكترونية | EH29: *تدريبات مهنية | EI29: * مجموع كلى | EJ29: *دين | EK29: 0 | EL29: 0
A30: =IF($M30="","",MAX($A$12:$A29)+1) -> 18 | B30: 9 | C30: 9 | D30: 2001 | E30: 30109091306561 | F30: 2001-09-09 | G30: 21 | H30: 0 | I30: 16 | M30: mk18 | N30: 22 | T30: 4 | U30: 12 | X30: 16 | Y30: 3.5 | Z30: 13.5 | AC30: 17 | AD30: 3 | AE30: 16 | AH30: 19 | AI30: 4 | AJ30: 14 | AM30: 18 | AN30: 3.5 | AO30: 15 | AR30: 18.5 | AS30: 5 | AT30: 19 | AW30: 24 | AX30: 1.5 | AY30: 5 | BB30: 6.5 | BC30: 2.5 | BD30: 10 | BG30: 12.5 | BH30: 0.7 | BI30: 3 | BL30: 3.7 | BM30: 1.5 | BN30: 5.5 | BQ30: 7 | BR30: 0.8 | BS30: 2.8 | BV30: 3.6 | BW30: 3.2 | BX30: 9.5 | CA30: 12.7 | CB30: 3.5 | CC30: 12 | CF30: 15.5 | CG30: 2.5 | CH30: 8 | CK30: 10.5 | CL30: 2.5 | CM30: 6.5 | CP30: 9 | CQ30: 0.8 | CR30: 3.5 | CU30: 4.3 | CV30: 8 | CW30: 37 | CZ30: 45 | DA30: 229.5 | DB30: 1.5 | DC30: 6.5 | DF30: 8 | DK30: 0 | DP30: 0 | DQ30: راسبة | DR30: *عربى *انجليزي *فلسفة *رياضيات *فيزياء *رسم فني *مواد وعمليات تشغيل *مبادئ حاسب *عملي مبادئ حاسب *أمن صناعي *أجهزة قياس *معمل أجهزة قياس *مبادئ كهرباء *عناصر الكترونية *تدريبات مهنية* مجموع كلى *دين | DT30: *عربى | DU30: *انجليزي | DV30: *فلسفة | DW30: *رياضيات | DX30: *فيزياء | DY30: *رسم فني | DZ30: *مواد وعمليات تشغيل | EA30: *مبادئ حاسب | EB30: *عملي مبادئ حاسب | EC30: *أمن صناعي | ED30: *أجهزة قياس | EE30: *معمل أجهزة قياس | EF30: *مبادئ كهرباء | EG30: *عناصر الكترونية | EH30: *تدريبات مهنية | EI30: * مجموع كلى | EJ30: *دين | EK30: 0 | EL30: 0
A31: =IF($M31="","",MAX($A$12:$A30)+1) -> 19 | B31: 1 | C31: 11 | D31: 2000 | E31: 30011011317541 | F31: 2000-11-01 | G31: 29 | H31: 10 | I31: 16 | M31: mk19 | N31: 23 | T31: 4 | U31: 9 | X31: 13 | Y31: 3.5 | Z31: 12 | AC31: 15.5 | AD31: 3 | AE31: 15 | AH31: 18 | AI31: 4 | AJ31: 14 | AM31: 18 | AN31: 3.5 | AO31: 15 | AR31: 18.5 | AS31: 5 | AT31: 16.5 | AW31: 21.5 | AX31: 1.5 | AY31: 4 | BB31: 5.5 | BC31: 2.5 | BD31: 5 | BG31: 7.5 | BH31: 0.7 | BI31: 1.5 | BL31: 2.2 | BM31: 1.5 | BN31: 5 | BQ31: 6.5 | BR31: 0.8 | BS31: 3 | BV31: 3.8 | BW31: 3.2 | BX31: 9.5 | CA31: 12.7 | CB31: 3.5 | CC31: 8.5 | CF31: 12 | CG31: 2.5 | CH31: 6 | CK31: 8.5 | CL31: 2.5 | CM31: 5 | CP31: 7.5 | CQ31: 0.8 | CR31: 2.5 | CU31: 3.3 | CV31: 8 | CW31: 36 | CZ31: 44 | DA31: 207.2 | DB31: 1.5 | DC31: 6 | DF31: 7.5 | DK31: 0 | DP31: 0 | DQ31: راسبة | DR31: *عربى*انجليزي *فلسفة *رياضيات *فيزياء *رسم فني *مواد وعمليات تشغيل *مبادئ حاسب *عملي مبادئ حاسب *أمن صناعي *أجهزة قياس *معمل أجهزة قياس *مبادئ كهرباء *عناصر الكترونية *تدريبات مهنية* مجموع كلى *دين | DT31: *عربى | DU31: *انجليزي | DV31: *فلسفة | DW31: *رياضيات | DX31: *فيزياء | DY31: *رسم فني | DZ31: *مواد وعمليات تشغيل | EA31: *مبادئ حاسب | EB31: *عملي مبادئ حاسب | EC31: *أمن صناعي | ED31: *أجهزة قياس | EE31: *معمل أجهزة قياس | EF31: *مبادئ كهرباء | EG31: *عناصر الكترونية | EH31: *تدريبات مهنية | EI31: * مجموع كلى | EJ31: *دين | EK31: 0 | EL31: 0
A32: =IF($M32="","",MAX($A$12:$A31)+1) -> 20 | B32: 12 | C32: 1 | D32: 2001 | E32: 30101121301186 | F32: 2001-01-12 | G32: 18 | H32: 8 | I32: 16 | M32: mk20 | N32: 24 | T32: 4 | U32: 11.5 | X32: 15.5 | Y32: 3.5 | Z32: 9.5 | AC32: 13 | AD32: 3 | AE32: 16 | AH32: 19 | AI32: 2.5 | AJ32: 15.5 | AM32: 18 | AN32: 3.5 | AO32: 12 | AR32: 15.5 | AS32: 5 | AT32: 16.5 | AW32: 21.5 | AX32: 1.5 | AY32: 4 | BB32: 5.5 | BC32: 2.5 | BD32: 1.5 | BG32: 4 | BH32: 0.7 | BI32: 2 | BL32: 2.7 | BM32: 1.5 | BN32: 5.5 | BQ32: 7 | BR32: 0.8 | BS32: 2.2 | BV32: 3 | BW32: 3.2 | BX32: 4.5 | CA32: 7.7 | CB32: 3.5 | CC32: 7.5 | CF32: 11 | CG32: 2.5 | CH32: 5.5 | CK32: 8 | CL32: 2.5 | CM32: 5 | CP32: 7.5 | CQ32: 0.8 | CR32: 3 | CU32: 3.8 | CV32: 8 | CW32: 36 | CZ32: 44 | DA32: 195.4 | DB32: 1.5 | DC32: 6.5 | DF32: 8 | DK32: 0 | DP32: 0 | DQ32: راسبة | DR32: *عربى*انجليزي *فلسفة *رياضيات *فيزياء *رسم فني *مواد وعمليات تشغيل *مبادئ حاسب *عملي مبادئ حاسب *أمن صناعي *أجهزة قياس *معمل أجهزة قياس *مبادئ كهرباء *عناصر الكترونية *تدريبات مهنية* مجموع كلى *دين | DT32: *عربى | DU32: *انجليزي | DV32: *فلسفة | DW32: *رياضيات | DX32: *فيزياء | DY32: *رسم فني | DZ32: *مواد وعمليات تشغيل | EA32: *مبادئ حاسب | EB32: *عملي مبادئ حاسب | EC32: *أمن صناعي | ED32: *أجهزة قياس | EE32: *معمل أجهزة قياس | EF32: *مبادئ كهرباء | EG32: *عناصر الكترونية | EH32: *تدريبات مهنية | EI32: * مجموع كلى | EJ32: *دين | EK32: 0 | EL32: 0
A33: =IF($M33="","",MAX($A$12:$A32)+1) -> 21 | B33: 1 | C33: 7 | D33: 2001 | E33: 30107011321244 | F33: 2001-07-01 | G33: 29 | H33: 2 | I33: 16 | M33: mk21 | N33: 25 | T33: 4 | U33: 12 | X33: 16 | Y33: 3.5 | Z33: 13 | AC33: 16.5 | AD33: 3 | AE33: 16 | AH33: 19 | AI33: 4 | AJ33: 13.5 | AM33: 17.5 | AN33: 3.5 | AO33: 11 | AR33: 14.5 | AS33: 5 | AT33: 16 | AW33: 21 | AX33: 1.5 | AY33: 4.5 | BB33: 6 | BC33: 2.5 | BD33: 6 | BG33: 8.5 | BH33: 0.7 | BI33: 1.5 | BL33: 2.2 | BM33: 1.5 | BN33: 7 | BQ33: 8.5 | BR33: 0.8 | BS33: 2.6 | BV33: 3.4 | BW33: 3.2 | BX33: 8.5 | CA33: 11.7 | CB33: 3.5 | CC33: 13.5 | CF33: 17 | CG33: 2.5 | CH33: 6.5 | CK33: 9 | CL33: 2.5 | CM33: 7.5 | CP33: 10 | CQ33: 0.8 | CR33: 3 | CU33: 3.8 | CV33: 8 | CW33: 38 | CZ33: 46 | DA33: 216.8 | DB33: 1.5 | DC33: 5 | DF33: 6.5 | DK33: 0 | DP33: 0 | DQ33: راسبة | DR33: *عربى *انجليزي *فلسفة *رياضيات *فيزياء *رسم فني *مواد وعمليات تشغيل *مبادئ حاسب *عملي مبادئ حاسب *أمن صناعي *أجهزة قياس *معمل أجهزة قياس *مبادئ كهرباء *عناصر الكترونية *تدريبات مهنية* مجموع كلى *دين | DT33: *عربى | DU33: *انجليزي | DV33: *فلسفة | DW33: *رياضيات | DX33: *فيزياء | DY33: *رسم فني | DZ33: *مواد وعمليات تشغيل | EA33: *مبادئ حاسب | EB33: *عملي مبادئ حاسب | EC33: *أمن صناعي | ED33: *أجهزة قياس | EE33: *معمل أجهزة قياس | EF33: *مبادئ كهرباء | EG33: *عناصر الكترونية | EH33: *تدريبات مهنية | EI33: * مجموع كلى | EJ33: *دين | EK33: 0 | EL33: 0
A34: =IF($M34="","",MAX($A$12:$A33)+1) -> 22 | B34: 10 | C34: 7 | D34: 2001 | E34: 30107101308123 | F34: 2001-07-10 | G34: 20 | H34: 2 | I34: 16 | M34: mk22 | N34: 26 | T34: 4 | U34: 11 | X34: 15 | Y34: 3.5 | Z34: 12.5 | AC34: 16 | AD34: 3 | AE34: 16 | AH34: 19 | AI34: 4 | AJ34: 14 | AM34: 18 | AN34: 3.5 | AO34: 9.5 | AR34: 13 | AS34: 5 | AT34: 16 | AW34: 21 | AX34: 1.5 | AY34: 5 | BB34: 6.5 | BC34: 2.5 | BD34: 9.5 | BG34: 12 | BH34: 0.7 | BI34: 3.5 | BL34: 4.2 | BM34: 1.5 | BN34: 3.5 | BQ34: 5 | BR34: 0.8 | BS34: 3.3 | BV34: 4.1 | BW34: 3.2 | BX34: 9 | CA34: 12.2 | CB34: 3.5 | CC34: 11.5 | CF34: 15 | CG34: 2.5 | CH34: 9.5 | CK34: 12 | CL34: 2.5 | CM34: 6.5 | CP34: 9 | CQ34: 0.8 | CR34: 3 | CU34: 3.8 | CV34: 8 | CW34: 38 | CZ34: 46 | DA34: 219 | DB34: 1.5 | DC34: 5 | DF34: 6.5 | DK34: 0 | DP34: 0 | DQ34: راسبة | DR34: *عربى *انجليزي *فلسفة *رياضيات *فيزياء *رسم فني *مواد وعمليات تشغيل *مبادئ حاسب *عملي مبادئ حاسب *أمن صناعي *أجهزة قياس *معمل أجهزة قياس *مبادئ كهرباء *عناصر الكترونية *تدريبات مهنية* مجموع كلى *دين | DT34: *عربى | DU34: *انجليزي | DV34: *فلسفة | DW34: *رياضيات | DX34: *فيزياء | DY34: *رسم فني | DZ34: *مواد وعمليات تشغيل | EA34: *مبادئ حاسب | EB34: *عملي مبادئ حاسب | EC34: *أمن صناعي | ED34: *أجهزة قياس | EE34: *معمل أجهزة قياس | EF34: *مبادئ كهرباء | EG34: *عناصر الكترونية | EH34: *تدريبات مهنية | EI34: * مجموع كلى | EJ34: *دين | EK34: 0 | EL34: 0
A35: =IF($M35="","",MAX($A$12:$A34)+1) -> 23 | B35: 1 | C35: 1 | D35: 2001 | E35: 30101011326485 | F35: 2001-01-01 | G35: 29 | H35: 8 | I35: 16 | M35: mk23 | N35: 27 | T35: 4 | U35: 10 | X35: 14 | Y35: 3.5 | Z35: 8.5 | AC35: 12 | AD35: 3 | AE35: 15 | AH35: 18 | AI35: 3 | AJ35: 12 | AM35: 15 | AN35: 3.5 | AO35: 10 | AR35: 13.5 | AS35: 5 | AT35: 13.5 | AW35: 18.5 | AX35: 1.5 | AY35: 4.5 | BB35: 6 | BC35: 2.5 | BD35: 6 | BG35: 8.5 | BH35: 0.7 | BI35: 1 | BL35: 1.7 | BM35: 1.5 | BN35: 4 | BQ35: 5.5 | BR35: 0.8 | BS35: 2.4 | BV35: 3.2 | BW35: 3.2 | BX35: 5.5 | CA35: 8.7 | CB35: 3.5 | CC35: 1.5 | CF35: 5 | CG35: 2.5 | CH35: 6 | CK35: 8.5 | CL35: 2.5 | CM35: 6 | CP35: 8.5 | CQ35: 0.8 | CR35: 3 | CU35: 3.8 | CV35: 8 | CW35: 37 | CZ35: 45 | DA35: 183.1 | DB35: 1.5 | DC35: 6 | DF35: 7.5 | DK35: 0 | DP35: 0 | DQ35: راسبة | DR35: *عربى*انجليزي *فلسفة *رياضيات *فيزياء *رسم فني *مواد وعمليات تشغيل *مبادئ حاسب *عملي مبادئ حاسب *أمن صناعي *أجهزة قياس *معمل أجهزة قياس *مبادئ كهرباء *عناصر الكترونية *تدريبات مهنية* مجموع كلى *دين | DT35: *عربى | DU35: *انجليزي | DV35: *فلسفة | DW35: *رياضيات | DX35: *فيزياء | DY35: *رسم فني | DZ35: *مواد وعمليات تشغيل | EA35: *مبادئ حاسب | EB35: *عملي مبادئ حاسب | EC35: *أمن صناعي | ED35: *أجهزة قياس | EE35: *معمل أجهزة قياس | EF35: *مبادئ كهرباء | EG35: *عناصر الكترونية | EH35: *تدريبات مهنية | EI35: * مجموع كلى | EJ35: *دين | EK35: 0 | EL35: 0
A36: =IF($M36="","",MAX($A$12:$A35)+1) -> 24 | B36: 8 | C36: 1 | D36: 2001 | E36: 30101081301188 | F36: 2001-01-08 | G36: 22 | H36: 8 | I36: 16 | M36: mk24 | N36: 28 | T36: 4 | U36: 12 | X36: 16 | Y36: 3.5 | Z36: 13 | AC36: 16.5 | AD36: 3 | AE36: 16 | AH36: 19 | AI36: 4 | AJ36: 11 | AM36: 15 | AN36: 3.5 | AO36: 12 | AR36: 15.5 | AS36: 5 | AT36: 14.5 | AW36: 19.5 | AX36: 1.5 | AY36: 4 | BB36: 5.5 | BC36: 2.5 | BD36: 4.5 | BG36: 7 | BH36: 0.7 | BI36: 2.5 | BL36: 3.2 | BM36: 1.5 | BN36: 4.5 | BQ36: 6 | BR36: 0.8 | BS36: 2.4 | BV36: 3.2 | BW36: 3.2 | BX36: 6 | CA36: 9.2 | CB36: 3.5 | CC36: 10.5 | CF36: 14 | CG36: 2.5 | CH36: 6.5 | CK36: 9 | CL36: 2.5 | CM36: 5.5 | CP36: 8 | CQ36: 0.8 | CR36: 3 | CU36: 3.8 | CV36: 8 | CW36: 37 | CZ36: 45 | DA36: 203.6 | DB36: 1.5 | DC36: 6.5 | DF36: 8 | DK36: 0 | DP36: 0 | DQ36: راسبة | DR36: *عربى *انجليزي *فلسفة *رياضيات *فيزياء *رسم فني *مواد وعمليات تشغيل *مبادئ حاسب *عملي مبادئ حاسب *أمن صناعي *أجهزة قياس *معمل أجهزة قياس *مبادئ كهرباء *عناصر الكترونية *تدريبات مهنية* مجموع كلى *دين | DT36: *عربى | DU36: *انجليزي | DV36: *فلسفة | DW36: *رياضيات | DX36: *فيزياء | DY36: *رسم فني | DZ36: *مواد وعمليات تشغيل | EA36: *مبادئ حاسب | EB36: *عملي مبادئ حاسب | EC36: *أمن صناعي | ED36: *أجهزة قياس | EE36: *معمل أجهزة قياس | EF36: *مبادئ كهرباء | EG36: *عناصر الكترونية | EH36: *تدريبات مهنية | EI36: * مجموع كلى | EJ36: *دين | EK36: 0 | EL36: 0
A37: =IF($M37="","",MAX($A$12:$A36)+1) -> 25 | B37: 11 | C37: 11 | D37: 2000 | E37: 30011111303688 | F37: 2000-11-11 | G37: 19 | H37: 10 | I37: 16 | M37: mk25 | N37: 29 | U37: 12.5 | X37: 12.5 | Y37: 3.5 | Z37: 12 | AC37: 15.5 | AD37: 3 | AE37: 16 | AH37: 19 | AI37: 4 | AJ37: 12.5 | AM37: 16.5 | AN37: 3.5 | AO37: 12 | AR37: 15.5 | AS37: 5 | AT37: 13.5 | AW37: 18.5 | AX37: 1.5 | AY37: 4.5 | BB37: 6 | BC37: 2.5 | BD37: 7.5 | BG37: 10 | BH37: 0.7 | BI37: 2 | BL37: 2.7 | BM37: 1.5 | BN37: 6.5 | BQ37: 8 | BR37: 0.8 | BS37: 2.2 | BV37: 3 | BW37: 3.2 | BX37: 5 | CA37: 8.2 | CB37: 3.5 | CC37: 12 | CF37: 15.5 | CG37: 2.5 | CH37: 5.5 | CK37: 8 | CL37: 2.5 | CM37: 5 | CP37: 7.5 | CQ37: 0.8 | CR37: 2.5 | CU37: 3.3 | CV37: 8 | CW37: 36 | CZ37: 44 | DA37: 202.9 | DB37: 1.5 | DC37: 5.5 | DF37: 7 | DK37: 0 | DP37: 0 | DQ37: راسبة | DR37: *عربى*انجليزي *فلسفة *رياضيات *فيزياء *رسم فني *مواد وعمليات تشغيل *مبادئ حاسب *عملي مبادئ حاسب *أمن صناعي *أجهزة قياس *معمل أجهزة قياس *مبادئ كهرباء *عناصر الكترونية *تدريبات مهنية* مجموع كلى *دين | DT37: *عربى | DU37: *انجليزي | DV37: *فلسفة | DW37: *رياضيات | DX37: *فيزياء | DY37: *رسم فني | DZ37: *مواد وعمليات تشغيل | EA37: *مبادئ حاسب | EB37: *عملي مبادئ حاسب | EC37: *أمن صناعي | ED37: *أجهزة قياس | EE37: *معمل أجهزة قياس | EF37: *مبادئ كهرباء | EG37: *عناصر الكترونية | EH37: *تدريبات مهنية | EI37: * مجموع كلى | EJ37: *دين | EK37: 0 | EL37: 0
A38: =IF($M38="","",MAX($A$12:$A37)+1) -> 26 | B38: 20 | C38: 9 | D38: 2001 | E38: 30109201308948 | F38: 2001-09-20 | G38: 10 | H38: 0 | I38: 16 | M38: mk26 | N38: 30 | U38: 12.5 | X38: 12.5 | Y38: 3.5 | Z38: 13 | AC38: 16.5 | AD38: 3 | AE38: 16 | AH38: 19 | AI38: 4 | AJ38: 11.5 | AM38: 15.5 | AN38: 3.5 | AO38: 14 | AR38: 17.5 | AS38: 5 | AT38: 16.5 | AW38: 21.5 | AX38: 1.5 | AY38: 5 | BB38: 6.5 | BC38: 2.5 | BD38: 9 | BG38: 11.5 | BH38: 0.7 | BI38: 2 | BL38: 2.7 | BM38: 1.5 | BN38: 6.5 | BQ38: 8 | BR38: 0.8 | BS38: 3.1 | BV38: 3.9 | BW38: 3.2 | BX38: 9 | CA38: 12.2 | CB38: 3.5 | CC38: 11.5 | CF38: 15 | CG38: 2.5 | CH38: 7 | CK38: 9.5 | CL38: 2.5 | CM38: 4 | CP38: 6.5 | CQ38: 0.8 | CR38: 3 | CU38: 3.8 | CV38: 8 | CW38: 38 | CZ38: 46 | DA38: 217.8 | DB38: 1.5 | DC38: 6.5 | DF38: 8 | DK38: 0 | DP38: 0 | DQ38: راسبة | DR38: *عربى *انجليزي *فلسفة *رياضيات *فيزياء *رسم فني *مواد وعمليات تشغيل *مبادئ حاسب *عملي مبادئ حاسب *أمن صناعي *أجهزة قياس *معمل أجهزة قياس *مبادئ كهرباء *عناصر الكترونية *تدريبات مهنية* مجموع كلى *دين | DT38: *عربى | DU38: *انجليزي | DV38: *فلسفة | DW38: *رياضيات | DX38: *فيزياء | DY38: *رسم فني | DZ38: *مواد وعمليات تشغيل | EA38: *مبادئ حاسب | EB38: *عملي مبادئ حاسب | EC38: *أمن صناعي | ED38: *أجهزة قياس | EE38: *معمل أجهزة قياس | EF38: *مبادئ كهرباء | EG38: *عناصر الكترونية | EH38: *تدريبات مهنية | EI38: * مجموع كلى | EJ38: *دين | EK38: 0 | EL38: 0
A39: =IF($M39="","",MAX($A$12:$A38)+1) -> 27 | B39: 15 | C39: 4 | D39: 2000 | E39: 30004151302505 | F39: 2000-04-15 | G39: 15 | H39: 5 | I39: 17 | M39: mk27 | N39: 31 | U39: 12 | X39: 12 | Y39: 3.5 | Z39: 14.5 | AC39: 18 | AD39: 3 | AE39: 16 | AH39: 19 | AI39: 4 | AJ39: 10.5 | AM39: 14.5 | AN39: 3.5 | AO39: 13 | AR39: 16.5 | AS39: 5 | AT39: 13.5 | AW39: 18.5 | AX39: 1.5 | AY39: 5.5 | BB39: 7 | BC39: 2.5 | BD39: 6 | BG39: 8.5 | BH39: 0.7 | BI39: 2.5 | BL39: 3.2 | BM39: 1.5 | BN39: 3 | BQ39: 4.5 | BR39: 0.8 | BS39: 2.4 | BV39: 3.2 | BW39: 3.2 | BX39: 6.5 | CA39: 9.7 | CB39: 3.5 | CC39: 12 | CF39: 15.5 | CG39: 2.5 | CH39: 6.5 | CK39: 9 | CL39: 2.5 | CM39: 3.5 | CP39: 6 | CQ39: 0.8 | CR39: 3 | CU39: 3.8 | CV39: 8 | CW39: 37 | CZ39: 45 | DA39: 204.1 | DB39: 1.5 | DC39: 5 | DF39: 6.5 | DK39: 0 | DP39: 0 | DQ39: راسبة | DR39: *عربى *انجليزي *فلسفة *رياضيات *فيزياء *رسم فني *مواد وعمليات تشغيل *مبادئ حاسب *عملي مبادئ حاسب *أمن صناعي *أجهزة قياس *معمل أجهزة قياس *مبادئ كهرباء *عناصر الكترونية *تدريبات مهنية* مجموع كلى *دين | DT39: *عربى | DU39: *انجليزي | DV39: *فلسفة | DW39: *رياضيات | DX39: *فيزياء | DY39: *رسم فني | DZ39: *مواد وعمليات تشغيل | EA39: *مبادئ حاسب | EB39: *عملي مبادئ حاسب | EC39: *أمن صناعي | ED39: *أجهزة قياس | EE39: *معمل أجهزة قياس | EF39: *مبادئ كهرباء | EG39: *عناصر الكترونية | EH39: *تدريبات مهنية | EI39: * مجموع كلى | EJ39: *دين | EK39: 0 | EL39: 0
A40: =IF($M40="","",MAX($A$12:$A39)+1) -> 28 | B40: 24 | C40: 3 | D40: 2001 | E40: 30103241302561 | F40: 2001-03-24 | G40: 6 | H40: 6 | I40: 16 | M40: mk28 | N40: 32 | T40: 4 | U40: 12.5 | X40: 16.5 | Y40: 3.5 | Z40: 13.5 | AC40: 17 | AD40: 3 | AE40: 15 | AH40: 18 | AI40: 2.5 | AJ40: 11.5 | AM40: 14 | AN40: 3.5 | AO40: 10 | AR40: 13.5 | AS40: 5 | AT40: 12.5 | AW40: 17.5 | AX40: 1.5 | AY40: 4 | BB40: 5.5 | BC40: 2.5 | BD40: 2 | BG40: 4.5 | BH40: 0.7 | BI40: 2 | BL40: 2.7 | BM40: 1.5 | BN40: 3 | BQ40: 4.5 | BR40: 0.8 | BS40: 2.3 | BV40: 3.1 | BW40: 3.2 | BX40: 6 | CA40: 9.2 | CB40: 3.5 | CC40: 7 | CF40: 10.5 | CG40: 2.5 | CH40: 6 | CK40: 8.5 | CL40: 2.5 | CM40: 3.5 | CP40: 6 | CQ40: 0.8 | CR40: 2.5 | CU40: 3.3 | CV40: 8 | CW40: 37 | CZ40: 45 | DA40: 190 | DB40: 1.5 | DC40: 5.5 | DF40: 7 | DK40: 0 | DP40: 0 | DQ40: راسبة | DR40: *عربى *انجليزي *فلسفة *رياضيات *فيزياء *رسم فني *مواد وعمليات تشغيل *مبادئ حاسب *عملي مبادئ حاسب *أمن صناعي *أجهزة قياس *معمل أجهزة قياس *مبادئ كهرباء *عناصر الكترونية *تدريبات مهنية* مجموع كلى *دين | DT40: *عربى | DU40: *انجليزي | DV40: *فلسفة | DW40: *رياضيات | DX40: *فيزياء | DY40: *رسم فني | DZ40: *مواد وعمليات تشغيل | EA40: *مبادئ حاسب | EB40: *عملي مبادئ حاسب | EC40: *أمن صناعي | ED40: *أجهزة قياس | EE40: *معمل أجهزة قياس | EF40: *مبادئ كهرباء | EG40: *عناصر الكترونية | EH40: *تدريبات مهنية | EI40: * مجموع كلى | EJ40: *دين | EK40: 0 | EL40: 0
A41: =IF($M41="","",MAX($A$12:$A40)+1) -> 29 | B41: 1 | C41: 1 | D41: 2001 | E41: 30101011330709 | F41: 2001-01-01 | G41: 29 | H41: 8 | I41: 16 | M41: mk29 | N41: 33 | T41: 4 | U41: 12.5 | X41: 16.5 | Y41: 3.5 | Z41: 14 | AC41: 17.5 | AD41: 3 | AE41: 16 | AH41: 19 | AI41: 4 | AJ41: 15.5 | AM41: 19.5 | AN41: 3.5 | AO41: 14.5 | AR41: 18 | AS41: 5 | AT41: 17.5 | AW41: 22.5 | AX41: 1.5 | AY41: 5.5 | BB41: 7 | BC41: 2.5 | BD41: 7.5 | BG41: 10 | BH41: 0.7 | BI41: 3 | BL41: 3.7 | BM41: 1.5 | BN41: 6 | BQ41: 7.5 | BR41: 0.8 | BS41: 3.3 | BV41: 4.1 | BW41: 3.2 | BX41: 9 | CA41: 12.2 | CB41: 4 | CC41: 14.5 | CF41: 18.5 | CG41: 2.5 | CH41: 8.5 | CK41: 11 | CL41: 2.5 | CM41: 7.5 | CP41: 10 | CQ41: 0.8 | CR41: 2.5 | CU41: 3.3 | CV41: 8 | CW41: 37 | CZ41: 45 | DA41: 232 | DB41: 1.5 | DC41: 6 | DF41: 7.5 | DK41: 0 | DP41: 0 | DQ41: راسبة | DR41: *عربى *انجليزي *فلسفة *رياضيات *فيزياء *رسم فني *مواد وعمليات تشغيل *مبادئ حاسب *عملي مبادئ حاسب *أمن صناعي *أجهزة قياس *معمل أجهزة قياس *مبادئ كهرباء *عناصر الكترونية *تدريبات مهنية* مجموع كلى *دين | DT41: *عربى | DU41: *انجليزي | DV41: *فلسفة | DW41: *رياضيات | DX41: *فيزياء | DY41: *رسم فني | DZ41: *مواد وعمليات تشغيل | EA41: *مبادئ حاسب | EB41: *عملي مبادئ حاسب | EC41: *أمن صناعي | ED41: *أجهزة قياس | EE41: *معمل أجهزة قياس | EF41: *مبادئ كهرباء | EG41: *عناصر الكترونية | EH41: *تدريبات مهنية | EI41: * مجموع كلى | EJ41: *دين | EK41: 0 | EL41: 0
A42: =IF($M42="","",MAX($A$12:$A41)+1) -> 30 | B42: 25 | C42: 3 | D42: 2001 | E42: 30103251305267 | F42: 2001-03-25 | G42: 5 | H42: 6 | I42: 16 | M42: mk30 | N42: 34 | T42: 4 | U42: 12 | X42: 16 | Y42: 3.5 | Z42: 12 | AC42: 15.5 | AD42: 3 | AE42: 16 | AH42: 19 | AI42: 2.5 | AJ42: 13.5 | AM42: 16 | AN42: 3.5 | AO42: 12 | AR42: 15.5 | AS42: 5 | AT42: 17.5 | AW42: 22.5 | AX42: 1.5 | AY42: 5 | BB42: 6.5 | BC42: 2.5 | BD42: 10.5 | BG42: 13 | BH42: 0.7 | BI42: 3 | BL42: 3.7 | BM42: 1.5 | BN42: 5 | BQ42: 6.5 | BR42: 0.8 | BS42: 3.2 | BV42: 4 | BW42: 3.2 | BX42: 5 | CA42: 8.2 | CB42: 3.5 | CC42: 11.5 | CF42: 15 | CG42: 2.5 | CH42: 8.5 | CK42: 11 | CL42: 2.5 | CM42: 4.5 | CP42: 7 | CQ42: 0.8 | CR42: 2.5 | CU42: 3.3 | CV42: 8 | CW42: 36 | CZ42: 44 | DA42: 216.4 | DB42: 1.5 | DC42: 5.5 | DF42: 7 | DK42: 0 | DP42: 0 | DQ42: راسبة | DR42: *عربى*انجليزي *فلسفة *رياضيات *فيزياء *رسم فني *مواد وعمليات تشغيل *مبادئ حاسب *عملي مبادئ حاسب *أمن صناعي *أجهزة قياس *معمل أجهزة قياس *مبادئ كهرباء *عناصر الكترونية *تدريبات مهنية* مجموع كلى *دين | DT42: *عربى | DU42: *انجليزي | DV42: *فلسفة | DW42: *رياضيات | DX42: *فيزياء | DY42: *رسم فني | DZ42: *مواد وعمليات تشغيل | EA42: *مبادئ حاسب | EB42: *عملي مبادئ حاسب | EC42: *أمن صناعي | ED42: *أجهزة قياس | EE42: *معمل أجهزة قياس | EF42: *مبادئ كهرباء | EG42: *عناصر الكترونية | EH42: *تدريبات مهنية | EI42: * مجموع كلى | EJ42: *دين | EK42: 0 | EL42: 0
A43: =IF($M43="","",MAX($A$12:$A42)+1) -> 31 | B43: 13 | C43: 3 | D43: 2001 | E43: 30103131302426 | F43: 2001-03-13 | G43: 17 | H43: 6 | I43: 16 | M43: mk31 | N43: 35 | T43: 4 | U43: 11.5 | X43: 15.5 | Y43: 3.5 | Z43: 14.5 | AC43: 18 | AD43: 3 | AE43: 16 | AH43: 19 | AI43: 4 | AJ43: 15 | AM43: 19 | AN43: 3.5 | AO43: 11.5 | AR43: 15 | AS43: 5 | AT43: 14 | AW43: 19 | AX43: 1.5 | AY43: 4.5 | BB43: 6 | BC43: 2.5 | BD43: 10 | BG43: 12.5 | BH43: 0.7 | BI43: 3 | BL43: 3.7 | BM43: 1.5 | BN43: 4.5 | BQ43: 6 | BR43: 0.8 | BS43: 3.4 | BV43: 4.2 | BW43: 3.2 | BX43: 10 | CA43: 13.2 | CB43: 3.5 | CC43: 11.5 | CF43: 15 | CG43: 2.5 | CH43: 7 | CK43: 9.5 | CL43: 2.5 | CM43: 4.5 | CP43: 7 | CQ43: 0.8 | CR43: 3 | CU43: 3.8 | CV43: 8 | CW43: 37 | CZ43: 45 | DA43: 220.6 | DB43: 1.5 | DC43: 5 | DF43: 6.5 | DK43: 0 | DP43: 0 | DQ43: راسبة | DR43: *عربى *انجليزي *فلسفة *رياضيات *فيزياء *رسم فني *مواد وعمليات تشغيل *مبادئ حاسب *عملي مبادئ حاسب *أمن صناعي *أجهزة قياس *معمل أجهزة قياس *مبادئ كهرباء *عناصر الكترونية *تدريبات مهنية* مجموع كلى *دين | DT43: *عربى | DU43: *انجليزي | DV43: *فلسفة | DW43: *رياضيات | DX43: *فيزياء | DY43: *رسم فني | DZ43: *مواد وعمليات تشغيل | EA43: *مبادئ حاسب | EB43: *عملي مبادئ حاسب | EC43: *أمن صناعي | ED43: *أجهزة قياس | EE43: *معمل أجهزة قياس | EF43: *مبادئ كهرباء | EG43: *عناصر الكترونية | EH43: *تدريبات مهنية | EI43: * مجموع كلى | EJ43: *دين | EK43: 0 | EL43: 0
A44: =IF($M44="","",MAX($A$12:$A43)+1) -> 32 | B44: 1 | C44: 9 | D44: 2001 | E44: 30109011304342 | F44: 2001-09-01 | G44: 29 | H44: 0 | I44: 16 | M44: mk32 | N44: 36 | T44: 4 | U44: 10.5 | X44: 14.5 | Y44: 3.5 | Z44: 11 | AC44: 14.5 | AD44: 3 | AE44: 13 | AH44: 16 | AI44: 4 | AJ44: 8 | AM44: 12 | AN44: 3.5 | AO44: 7 | AR44: 10.5 | AS44: 5 | AT44: 13.5 | AW44: 18.5 | AX44: 1.5 | AY44: 4 | BB44: 5.5 | BC44: 2.5 | BD44: 2 | BG44: 4.5 | BH44: 0.7 | BI44: 2 | BL44: 2.7 | BM44: 1.5 | BN44: 5 | BQ44: 6.5 | BR44: 0.8 | BS44: 2.6 | BV44: 3.4 | BW44: 3.2 | BX44: 3.5 | CA44: 6.7 | CB44: 3.5 | CC44: 7 | CF44: 10.5 | CG44: 2.5 | CH44: 5.5 | CK44: 8 | CL44: 2.5 | CM44: 3.5 | CP44: 6 | CQ44: 0.8 | CR44: 3 | CU44: 3.8 | CV44: 8 | CW44: 38 | CZ44: 46 | DA44: 179.8 | DB44: 1.5 | DC44: 5.5 | DF44: 7 | DK44: 0 | DP44: 0 | DQ44: راسبة | DR44: *عربى*انجليزي *فلسفة *رياضيات *فيزياء *رسم فني *مواد وعمليات تشغيل *مبادئ حاسب *عملي مبادئ حاسب *أمن صناعي *أجهزة قياس *معمل أجهزة قياس *مبادئ كهرباء *عناصر الكترونية *تدريبات مهنية* مجموع كلى *دين | DT44: *عربى | DU44: *انجليزي | DV44: *فلسفة | DW44: *رياضيات | DX44: *فيزياء | DY44: *رسم فني | DZ44: *مواد وعمليات تشغيل | EA44: *مبادئ حاسب | EB44: *عملي مبادئ حاسب | EC44: *أمن صناعي | ED44: *أجهزة قياس | EE44: *معمل أجهزة قياس | EF44: *مبادئ كهرباء | EG44: *عناصر الكترونية | EH44: *تدريبات مهنية | EI44: * مجموع كلى | EJ44: *دين | EK44: 0 | EL44: 0
A45: =IF($M45="","",MAX($A$12:$A44)+1) -> 33 | B45: 28 | C45: 1 | D45: 2001 | E45: 30101281301603 | F45: 2001-01-28 | G45: 2 | H45: 8 | I45: 16 | M45: mk33 | N45: 37 | T45: 4 | U45: 13.5 | X45: 17.5 | Y45: 3.5 | Z45: 11.5 | AC45: 15 | AD45: 3 | AE45: 14 | AH45: 17 | AI45: 4 | AJ45: 13.5 | AM45: 17.5 | AN45: 3.5 | AO45: 15 | AR45: 18.5 | AS45: 5 | AT45: 19 | AW45: 24 | AX45: 1.5 | AY45: 4.5 | BB45: 6 | BC45: 2.5 | BD45: 10 | BG45: 12.5 | BH45: 0.7 | BI45: 3 | BL45: 3.7 | BM45: 1.5 | BN45: 5.5 | BQ45: 7 | BR45: 0.8 | BS45: 3.2 | BV45: 4 | BW45: 3.2 | BX45: 7 | CA45: 10.2 | CB45: 3.5 | CC45: 11.5 | CF45: 15 | CG45: 2.5 | CH45: 7.5 | CK45: 10 | CL45: 2.5 | CM45: 5 | CP45: 7.5 | CQ45: 0.8 | CR45: 2.5 | CU45: 3.3 | CV45: 8 | CW45: 38 | CZ45: 46 | DA45: 223.9 | DB45: 1.5 | DC45: 5 | DF45: 6.5 | DK45: 0 | DP45: 0 | DQ45: راسبة | DR45: *عربى*انجليزي *فلسفة *رياضيات *فيزياء *رسم فني *مواد وعمليات تشغيل *مبادئ حاسب *عملي مبادئ حاسب *أمن صناعي *أجهزة قياس *معمل أجهزة قياس *مبادئ كهرباء *عناصر الكترونية *تدريبات مهنية* مجموع كلى *دين | DT45: *عربى | DU45: *انجليزي | DV45: *فلسفة | DW45: *رياضيات | DX45: *فيزياء | DY45: *رسم فني | DZ45: *مواد وعمليات تشغيل | EA45: *مبادئ حاسب | EB45: *عملي مبادئ حاسب | EC45: *أمن صناعي | ED45: *أجهزة قياس | EE45: *معمل أجهزة قياس | EF45: *مبادئ كهرباء | EG45: *عناصر الكترونية | EH45: *تدريبات مهنية | EI45: * مجموع كلى | EJ45: *دين | EK45: 0 | EL45: 0
A46: =IF($M46="","",MAX($A$12:$A45)+1) -> 34 | B46: 10 | C46: 2 | D46: 2001 | E46: 30102101305483 | F46: 2001-02-10 | G46: 20 | H46: 7 | I46: 16 | M46: mk34 | N46: 38 | T46: 4 | U46: 10 | X46: 14 | Y46: 3.5 | Z46: 12 | AC46: 15.5 | AD46: 3 | AE46: 15 | AH46: 18 | AI46: 2.5 | AJ46: 6 | AM46: 8.5 | AN46: 3.5 | AO46: 10.5 | AR46: 14 | AS46: 5 | AT46: 12.5 | AW46: 17.5 | AX46: 1.5 | AY46: 4.5 | BB46: 6 | BC46: 2.5 | BD46: 3 | BG46: 5.5 | BH46: 0.7 | BI46: 2.5 | BL46: 3.2 | BM46: 1.5 | BN46: 4.5 | BQ46: 6 | BR46: 0.8 | BS46: 3.6 | BV46: 4.4 | BW46: 3.2 | BX46: 1.5 | CA46: 4.7 | CB46: 3 | CC46: 8.5 | CF46: 11.5 | CG46: 2.5 | CH46: 4 | CK46: 6.5 | CL46: 2.5 | CM46: 3 | CP46: 5.5 | CQ46: 0.8 | CR46: 2.5 | CU46: 3.3 | CV46: 8 | CW46: 36 | CZ46: 44 | DA46: 179.3 | DB46: 1.5 | DC46: 6 | DF46: 7.5 | DK46: 0 | DP46: 0 | DQ46: راسبة | DR46: *عربى*انجليزي *فلسفة *رياضيات *فيزياء *رسم فني *مواد وعمليات تشغيل *مبادئ حاسب *عملي مبادئ حاسب *أمن صناعي *أجهزة قياس *معمل أجهزة قياس *مبادئ كهرباء *عناصر الكترونية *تدريبات مهنية* مجموع كلى *دين | DT46: *عربى | DU46: *انجليزي | DV46: *فلسفة | DW46: *رياضيات | DX46: *فيزياء | DY46: *رسم فني | DZ46: *مواد وعمليات تشغيل | EA46: *مبادئ حاسب | EB46: *عملي مبادئ حاسب | EC46: *أمن صناعي | ED46: *أجهزة قياس | EE46: *معمل أجهزة قياس | EF46: *مبادئ كهرباء | EG46: *عناصر الكترونية | EH46: *تدريبات مهنية | EI46: * مجموع كلى | EJ46: *دين | EK46: 0 | EL46: 0
A47: =IF($M47="","",MAX($A$12:$A46)+1) -> 35 | B47: 14 | C47: 7 | D47: 2001 | E47: 30107141303167 | F47: 2001-07-14 | G47: 16 | H47: 2 | I47: 16 | M47: mk35 | N47: 39 | T47: 4 | U47: 10 | X47: 14 | Y47: 3.5 | Z47: 9 | AC47: 12.5 | AD47: 3 | AE47: 15 | AH47: 18 | AI47: 3.5 | AJ47: 9 | AM47: 12.5 | AN47: 3.5 | AO47: 8 | AR47: 11.5 | AS47: 5 | AT47: 14 | AW47: 19 | AX47: 1.5 | AY47: 3.5 | BB47: 5 | BC47: 2.5 | BD47: 2.5 | BG47: 5 | BH47: 0.7 | BI47: 2.5 | BL47: 3.2 | BM47: 1.5 | BN47: 5.5 | BQ47: 7 | BR47: 0.8 | BS47: 3.1 | BV47: 3.9 | BW47: 3.2 | BX47: 2 | CA47: 5.2 | CB47: 2.5 | CC47: 4 | CF47: 6.5 | CG47: 2.5 | CH47: 4.5 | CK47: 7 | CL47: 2.5 | CM47: 3 | CP47: 5.5 | CQ47: 0.8 | CR47: 3 | CU47: 3.8 | CV47: 8 | CW47: 38 | CZ47: 46 | DA47: 176.3 | DB47: 1.5 | DC47: 5.5 | DF47: 7 | DK47: 0 | DP47: 0 | DQ47: راسبة | DR47: *عربى*انجليزي *فلسفة *رياضيات *فيزياء *رسم فني *مواد وعمليات تشغيل *مبادئ حاسب *عملي مبادئ حاسب *أمن صناعي *أجهزة قياس *معمل أجهزة قياس *مبادئ كهرباء *عناصر الكترونية *تدريبات مهنية* مجموع كلى *دين | DT47: *عربى | DU47: *انجليزي | DV47: *فلسفة | DW47: *رياضيات | DX47: *فيزياء | DY47: *رسم فني | DZ47: *مواد وعمليات تشغيل | EA47: *مبادئ حاسب | EB47: *عملي مبادئ حاسب | EC47: *أمن صناعي | ED47: *أجهزة قياس | EE47: *معمل أجهزة قياس | EF47: *مبادئ كهرباء | EG47: *عناصر الكترونية | EH47: *تدريبات مهنية | EI47: * مجموع كلى | EJ47: *دين | EK47: 0 | EL47: 0
A48: =IF($M48="","",MAX($A$12:$A47)+1) -> 36 | B48: 5 | C48: 7 | D48: 2001 | E48: 30107051303761 | F48: 2001-07-05 | G48: 25 | H48: 2 | I48: 16 | M48: mk36 | N48: 40 | T48: 4 | U48: 13 | X48: 17 | Y48: 3.5 | Z48: 13.5 | AC48: 17 | AD48: 3 | AE48: 16 | AH48: 19 | AI48: 3 | AJ48: 11.5 | AM48: 14.5 | AN48: 3.5 | AO48: 10 | AR48: 13.5 | AS48: 5 | AT48: 14.5 | AW48: 19.5 | AX48: 1.5 | AY48: 3.5 | BB48: 5 | BC48: 2.5 | BD48: 7.5 | BG48: 10 | BH48: 0.7 | BI48: 3 | BL48: 3.7 | BM48: 1.5 | BN48: 6 | BQ48: 7.5 | BR48: 0.8 | BS48: 3.4 | BV48: 4.2 | BW48: 3.2 | BX48: 10 | CA48: 13.2 | CB48: 3.5 | CC48: 9 | CF48: 12.5 | CG48: 2.5 | CH48: 8 | CK48: 10.5 | CL48: 2.5 | CM48: 3 | CP48: 5.5 | CQ48: 0.8 | CR48: 3 | CU48: 3.8 | CV48: 8 | CW48: 37 | CZ48: 45 | DA48: 212.1 | DB48: 1.5 | DC48: 6 | DF48: 7.5 | DK48: 0 | DP48: 0 | DQ48: راسبة | DR48: *عربى *انجليزي *فلسفة *رياضيات *فيزياء *رسم فني *مواد وعمليات تشغيل *مبادئ حاسب *عملي مبادئ حاسب *أمن صناعي *أجهزة قياس *معمل أجهزة قياس *مبادئ كهرباء *عناصر الكترونية *تدريبات مهنية* مجموع كلى *دين | DT48: *عربى | DU48: *انجليزي | DV48: *فلسفة | DW48: *رياضيات | DX48: *فيزياء | DY48: *رسم فني | DZ48: *مواد وعمليات تشغيل | EA48: *مبادئ حاسب | EB48: *عملي مبادئ حاسب | EC48: *أمن صناعي | ED48: *أجهزة قياس | EE48: *معمل أجهزة قياس | EF48: *مبادئ كهرباء | EG48: *عناصر الكترونية | EH48: *تدريبات مهنية | EI48: * مجموع كلى | EJ48: *دين | EK48: 0 | EL48: 0
A49: =IF($M49="","",MAX($A$12:$A48)+1) -> 37 | B49: 1 | C49: 4 | D49: 2001 | E49: 30104011317329 | F49: 2001-04-01 | G49: 29 | H49: 5 | I49: 16 | M49: mk37 | N49: 41 | T49: 4 | U49: 12 | X49: 16 | Y49: 3.5 | Z49: 9.5 | AC49: 13 | AD49: 3 | AE49: 16 | AH49: 19 | AI49: 4 | AJ49: 13.5 | AM49: 17.5 | AN49: 3.5 | AO49: 13 | AR49: 16.5 | AS49: 5 | AT49: 17.5 | AW49: 22.5 | AX49: 1.5 | AY49: 3.5 | BB49: 5 | BC49: 2.5 | BD49: 5 | BG49: 7.5 | BH49: 0.7 | BI49: 3 | BL49: 3.7 | BM49: 1.5 | BN49: 5.5 | BQ49: 7 | BR49: 0.8 | BS49: 3.4 | BV49: 4.2 | BW49: 3.2 | BX49: 4 | CA49: 7.2 | CB49: 3.5 | CC49: 10 | CF49: 13.5 | CG49: 2.5 | CH49: 9 | CK49: 11.5 | CL49: 2.5 | CM49: 7.5 | CP49: 10 | CQ49: 0.8 | CR49: 3 | CU49: 3.8 | CV49: 8 | CW49: 38 | CZ49: 46 | DA49: 210.1 | DB49: 1.5 | DC49: 5 | DF49: 6.5 | DK49: 0 | DP49: 0 | DQ49: راسبة | DR49: *عربى*انجليزي *فلسفة *رياضيات *فيزياء *رسم فني *مواد وعمليات تشغيل *مبادئ حاسب *عملي مبادئ حاسب *أمن صناعي *أجهزة قياس *معمل أجهزة قياس *مبادئ كهرباء *عناصر الكترونية *تدريبات مهنية* مجموع كلى *دين | DT49: *عربى | DU49: *انجليزي | DV49: *فلسفة | DW49: *رياضيات | DX49: *فيزياء | DY49: *رسم فني | DZ49: *مواد وعمليات تشغيل | EA49: *مبادئ حاسب | EB49: *عملي مبادئ حاسب | EC49: *أمن صناعي | ED49: *أجهزة قياس | EE49: *معمل أجهزة قياس | EF49: *مبادئ كهرباء | EG49: *عناصر الكترونية | EH49: *تدريبات مهنية | EI49: * مجموع كلى | EJ49: *دين | EK49: 0 | EL49: 0
A50: =IF($M50="","",MAX($A$12:$A49)+1) -> 38 | B50: 24 | C50: 2 | D50: 2001 | E50: 30102241301364 | F50: 2001-02-24 | G50: 6 | H50: 7 | I50: 16 | M50: mk38 | N50: 42 | T50: 4 | U50: 10 | X50: 14 | Y50: 3.5 | Z50: 8 | AC50: 11.5 | AD50: 3 | AE50: 15 | AH50: 18 | AI50: 3 | AJ50: 8.5 | AM50: 11.5 | AN50: 3.5 | AO50: 9 | AR50: 12.5 | AS50: 5 | AT50: 13 | AW50: 18 | AX50: 1.5 | AY50: 3 | BB50: 4.5 | BC50: 2.5 | BD50: 4.5 | BG50: 7 | BH50: 0.7 | BI50: 2 | BL50: 2.7 | BM50: 1.5 | BN50: 5 | BQ50: 6.5 | BR50: 0.8 | BS50: 3.4 | BV50: 4.2 | BW50: 3.2 | BX50: 2.5 | CA50: 5.7 | CB50: 3 | CC50: 7.5 | CF50: 10.5 | CG50: 2.5 | CH50: 6 | CK50: 8.5 | CL50: 2.5 | CM50: 5.5 | CP50: 8 | CQ50: 0.8 | CR50: 2.5 | CU50: 3.3 | CV50: 8 | CW50: 36 | CZ50: 44 | DA50: 179.1 | DB50: 1.5 | DC50: 5.5 | DF50: 7 | DK50: 0 | DP50: 0 | DQ50: راسبة | DR50: *عربى*انجليزي *فلسفة *رياضيات *فيزياء *رسم فني *مواد وعمليات تشغيل *مبادئ حاسب *عملي مبادئ حاسب *أمن صناعي *أجهزة قياس *معمل أجهزة قياس *مبادئ كهرباء *عناصر الكترونية *تدريبات مهنية* مجموع كلى *دين | DT50: *عربى | DU50: *انجليزي | DV50: *فلسفة | DW50: *رياضيات | DX50: *فيزياء | DY50: *رسم فني | DZ50: *مواد وعمليات تشغيل | EA50: *مبادئ حاسب | EB50: *عملي مبادئ حاسب | EC50: *أمن صناعي | ED50: *أجهزة قياس | EE50: *معمل أجهزة قياس | EF50: *مبادئ كهرباء | EG50: *عناصر الكترونية | EH50: *تدريبات مهنية | EI50: * مجموع كلى | EJ50: *دين | EK50: 0 | EL50: 0
A51: =IF($M51="","",MAX($A$12:$A50)+1) -> 39 | B51: 25 | C51: 9 | D51: 2001 | E51: 30109251308841 | F51: 2001-09-25 | G51: 5 | H51: 0 | I51: 16 | M51: mk39 | N51: 43 | T51: 4 | U51: 11 | X51: 15 | Y51: 3.5 | Z51: 13 | AC51: 16.5 | AD51: 3 | AE51: 16 | AH51: 19 | AI51: 4 | AJ51: 12 | AM51: 16 | AN51: 3.5 | AO51: 11 | AR51: 14.5 | AS51: 5 | AT51: 13.5 | AW51: 18.5 | AX51: 1.5 | AY51: 3.5 | BB51: 5 | BC51: 2.5 | BD51: 6.5 | BG51: 9 | BH51: 0.7 | BI51: 3 | BL51: 3.7 | BM51: 1.5 | BN51: 7 | BQ51: 8.5 | BR51: 0.8 | BS51: 3.4 | BV51: 4.2 | BW51: 3.2 | BX51: 9 | CA51: 12.2 | CB51: 3.5 | CC51: 9.5 | CF51: 13 | CG51: 2.5 | CH51: 6.5 | CK51: 9 | CL51: 2.5 | CM51: 5 | CP51: 7.5 | CQ51: 0.8 | CR51: 3 | CU51: 3.8 | CV51: 8 | CW51: 37 | CZ51: 45 | DA51: 209.1 | DB51: 1.5 | DC51: 6 | DF51: 7.5 | DK51: 0 | DP51: 0 | DQ51: راسبة | DR51: *عربى *انجليزي *فلسفة *رياضيات *فيزياء *رسم فني *مواد وعمليات تشغيل *مبادئ حاسب *عملي مبادئ حاسب *أمن صناعي *أجهزة قياس *معمل أجهزة قياس *مبادئ كهرباء *عناصر الكترونية *تدريبات مهنية* مجموع كلى *دين | DT51: *عربى | DU51: *انجليزي | DV51: *فلسفة | DW51: *رياضيات | DX51: *فيزياء | DY51: *رسم فني | DZ51: *مواد وعمليات تشغيل | EA51: *مبادئ حاسب | EB51: *عملي مبادئ حاسب | EC51: *أمن صناعي | ED51: *أجهزة قياس | EE51: *معمل أجهزة قياس | EF51: *مبادئ كهرباء | EG51: *عناصر الكترونية | EH51: *تدريبات مهنية | EI51: * مجموع كلى | EJ51: *دين | EK51: 0 | EL51: 0
A52: =IF($M52="","",MAX($A$12:$A51)+1) -> 40 | B52: 7 | C52: 9 | D52: 2001 | E52: 30109071301687 | F52: 2001-09-07 | G52: 23 | H52: 0 | I52: 16 | M52: mk40 | N52: 44 | T52: 4 | U52: 12 | X52: 16 | Y52: 3.5 | Z52: 10 | AC52: 13.5 | AD52: 3 | AE52: 15 | AH52: 18 | AI52: 4 | AJ52: 11.5 | AM52: 15.5 | AN52: 3.5 | AO52: 10 | AR52: 13.5 | AS52: 5 | AT52: 15 | AW52: 20 | AX52: 1.5 | AY52: 3.5 | BB52: 5 | BC52: 2.5 | BD52: 5 | BG52: 7.5 | BH52: 0.7 | BI52: 2.5 | BL52: 3.2 | BM52: 1.5 | BN52: 4 | BQ52: 5.5 | BR52: 0.8 | BS52: 3.4 | BV52: 4.2 | BW52: 3.2 | BX52: 4.5 | CA52: 7.7 | CB52: 3.5 | CC52: 8 | CF52: 11.5 | CG52: 2.5 | CH52: 6.5 | CK52: 9 | CL52: 2.5 | CM52: 4.5 | CP52: 7 | CQ52: 0.8 | CR52: 3.5 | CU52: 4.3 | CV52: 8 | CW52: 38 | CZ52: 46 | DA52: 196.1 | DB52: 1.5 | DC52: 6 | DF52: 7.5 | DK52: 0 | DP52: 0 | DQ52: راسبة | DR52: *عربى*انجليزي *فلسفة *رياضيات *فيزياء *رسم فني *مواد وعمليات تشغيل *مبادئ حاسب *عملي مبادئ حاسب *أمن صناعي *أجهزة قياس *معمل أجهزة قياس *مبادئ كهرباء *عناصر الكترونية *تدريبات مهنية* مجموع كلى *دين | DT52: *عربى | DU52: *انجليزي | DV52: *فلسفة | DW52: *رياضيات | DX52: *فيزياء | DY52: *رسم فني | DZ52: *مواد وعمليات تشغيل | EA52: *مبادئ حاسب | EB52: *عملي مبادئ حاسب | EC52: *أمن صناعي | ED52: *أجهزة قياس | EE52: *معمل أجهزة قياس | EF52: *مبادئ كهرباء | EG52: *عناصر الكترونية | EH52: *تدريبات مهنية | EI52: * مجموع كلى | EJ52: *دين | EK52: 0 | EL52: 0
A53: =IF($M53="","",MAX($A$12:$A52)+1) -> 41 | E53: 30011251307381 | M53: mk41 | N53: 45 | T53: 4 | U53: 10.5 | X53: 14.5 | Y53: 3.5 | Z53: 11 | AC53: 14.5 | AD53: 3 | AE53: 16 | AH53: 19 | AI53: 3.5 | AJ53: 10.5 | AM53: 14 | AN53: 3.5 | AO53: 9 | AR53: 12.5 | AS53: 5 | AT53: 13.5 | AW53: 18.5 | AX53: 1.5 | AY53: 4 | BB53: 5.5 | BC53: 2.5 | BD53: 3 | BG53: 5.5 | BH53: 0.7 | BI53: 3 | BL53: 3.7 | BM53: 1.5 | BN53: 4 | BQ53: 5.5 | BR53: 0.8 | BS53: 3.2 | BV53: 4 | BW53: 3.2 | BX53: 4.5 | CA53: 7.7 | CB53: 3.5 | CC53: 8 | CF53: 11.5 | CG53: 2.5 | CH53: 6.5 | CK53: 9 | CL53: 2.5 | CM53: 5.5 | CP53: 8 | CQ53: 0.8 | CR53: 2.5 | CU53: 3.3 | CV53: 8 | CW53: 36 | CZ53: 44 | DA53: 189.4 | DB53: 1.5 | DC53: 5.5 | DF53: 7 | DK53: 0 | DP53: 0 | DQ53: راسبة | DR53: *عربى*انجليزي *فلسفة *رياضيات *فيزياء *رسم فني *مواد وعمليات تشغيل *مبادئ حاسب *عملي مبادئ حاسب *أمن صناعي *أجهزة قياس *معمل أجهزة قياس *مبادئ كهرباء *عناصر الكترونية *تدريبات مهنية* مجموع كلى *دين | DT53: *عربى | DU53: *انجليزي | DV53: *فلسفة | DW53: *رياضيات | DX53: *فيزياء | DY53: *رسم فني | DZ53: *مواد وعمليات تشغيل | EA53: *مبادئ حاسب | EB53: *عملي مبادئ حاسب | EC53: *أمن صناعي | ED53: *أجهزة قياس | EE53: *معمل أجهزة قياس | EF53: *مبادئ كهرباء | EG53: *عناصر الكترونية | EH53: *تدريبات مهنية | EI53: * مجموع كلى | EJ53: *دين | EK53: 0 | EL53: 0
A54: =IF($M54="","",MAX($A$12:$A53)+1) -> 42 | E54: 30102101302646 | M54: mk42 | N54: 46 | T54: 4 | U54: 10 | X54: 14 | Y54: 3.5 | Z54: 13 | AC54: 16.5 | AD54: 3 | AE54: 16 | AH54: 19 | AI54: 3.5 | AJ54: 11.5 | AM54: 15 | AN54: 3.5 | AO54: 11.5 | AR54: 15 | AS54: 5 | AT54: 15 | AW54: 20 | AX54: 1.5 | AY54: 3.5 | BB54: 5 | BC54: 2.5 | BD54: 8 | BG54: 10.5 | BH54: 0.7 | BI54: 3 | BL54: 3.7 | BM54: 1.5 | BN54: 3.5 | BQ54: 5 | BR54: 0.8 | BS54: 3.1 | BV54: 3.9 | BW54: 3.2 | BX54: 1.5 | CA54: 4.7 | CB54: 3.5 | CC54: 10 | CF54: 13.5 | CG54: 2.5 | CH54: 6.5 | CK54: 9 | CL54: 2.5 | CM54: 4 | CP54: 6.5 | CQ54: 0.8 | CR54: 3 | CU54: 3.8 | CV54: 8 | CW54: 38 | CZ54: 46 | DA54: 200.8 | DB54: 1.5 | DC54: 5 | DF54: 6.5 | DK54: 0 | DP54: 0 | DQ54: راسبة | DR54: *عربى *انجليزي *فلسفة *رياضيات *فيزياء *رسم فني *مواد وعمليات تشغيل *مبادئ حاسب *عملي مبادئ حاسب *أمن صناعي *أجهزة قياس *معمل أجهزة قياس *مبادئ كهرباء *عناصر الكترونية *تدريبات مهنية* مجموع كلى *دين | DT54: *عربى | DU54: *انجليزي | DV54: *فلسفة | DW54: *رياضيات | DX54: *فيزياء | DY54: *رسم فني | DZ54: *مواد وعمليات تشغيل | EA54: *مبادئ حاسب | EB54: *عملي مبادئ حاسب | EC54: *أمن صناعي | ED54: *أجهزة قياس | EE54: *معمل أجهزة قياس | EF54: *مبادئ كهرباء | EG54: *عناصر الكترونية | EH54: *تدريبات مهنية | EI54: * مجموع كلى | EJ54: *دين | EK54: 0 | EL54: 0
A55: =IF($M55="","",MAX($A$12:$A54)+1) -> 
A56: =IF($M56="","",MAX($A$12:$A55)+1) -> 
A57: =IF($M57="","",MAX($A$12:$A56)+1) -> 
A58: =IF($M58="","",MAX($A$12:$A57)+1) -> 
A59: =IF($M59="","",MAX($A$12:$A58)+1) -> 
A60: =IF($M60="","",MAX($A$12:$A59)+1) -> 
A61: =IF($M61="","",MAX($A$12:$A60)+1) -> 
A62: =IF($M62="","",MAX($A$12:$A61)+1) -> 
A63: =IF($M63="","",MAX($A$12:$A62)+1) -> 
A64: =IF($M64="","",MAX($A$12:$A63)+1) -> 
A65: =IF($M65="","",MAX($A$12:$A64)+1) -> 
A66: =IF($M66="","",MAX($A$12:$A65)+1) -> 
A67: =IF($M67="","",MAX($A$12:$A66)+1) -> 
A68: =IF($M68="","",MAX($A$12:$A67)+1) -> 
A69: =IF($M69="","",MAX($A$12:$A68)+1) -> 
A70: =IF($M70="","",MAX($A$12:$A69)+1) -> 
A71: =IF($M71="","",MAX($A$12:$A70)+1) -> 
A72: =IF($M72="","",MAX($A$12:$A71)+1) -> 
A73: =IF($M73="","",MAX($A$12:$A72)+1) -> 
A74: =IF($M74="","",MAX($A$12:$A73)+1) -> 
A75: =IF($M75="","",MAX($A$12:$A74)+1) -> 
A76: =IF($M76="","",MAX($A$12:$A75)+1) -> 
A77: =IF($M77="","",MAX($A$12:$A76)+1) -> 
A78: =IF($M78="","",MAX($A$12:$A77)+1) -> 
A79: =IF($M79="","",MAX($A$12:$A78)+1) -> 
A80: =IF($M80="","",MAX($A$12:$A79)+1) -> 
A81: =IF($M81="","",MAX($A$12:$A80)+1) -> 
A82: =IF($M82="","",MAX($A$12:$A81)+1) -> 
A83: =IF($M83="","",MAX($A$12:$A82)+1) -> 
A84: =IF($M84="","",MAX($A$12:$A83)+1) -> 
A85: =IF($M85="","",MAX($A$12:$A84)+1) -> 
A86: =IF($M86="","",MAX($A$12:$A85)+1) -> 
A87: =IF($M87="","",MAX($A$12:$A86)+1) -> 
A88: =IF($M88="","",MAX($A$12:$A87)+1) -> 
A89: =IF($M89="","",MAX($A$12:$A88)+1) -> 
A90: =IF($M90="","",MAX($A$12:$A89)+1) -> 
A91: =IF($M91="","",MAX($A$12:$A90)+1) -> 
A92: =IF($M92="","",MAX($A$12:$A91)+1) -> 
A93: =IF($M93="","",MAX($A$12:$A92)+1) -> 
A94: =IF($M94="","",MAX($A$12:$A93)+1) -> 
A95: =IF($M95="","",MAX($A$12:$A94)+1) -> 
A96: =IF($M96="","",MAX($A$12:$A95)+1) -> 
A97: =IF($M97="","",MAX($A$12:$A96)+1) -> 
A98: =IF($M98="","",MAX($A$12:$A97)+1) -> 
A99: =IF($M99="","",MAX($A$12:$A98)+1) -> 
A100: =IF($M100="","",MAX($A$12:$A99)+1) -> 
A101: =IF($M101="","",MAX($A$12:$A100)+1) -> 
A102: =IF($M102="","",MAX($A$12:$A101)+1) -> 
A103: =IF($M103="","",MAX($A$12:$A102)+1) -> 
A104: =IF($M104="","",MAX($A$12:$A103)+1) -> 
A105: =IF($M105="","",MAX($A$12:$A104)+1) -> 
A106: =IF($M106="","",MAX($A$12:$A105)+1) -> 
A107: =IF($M107="","",MAX($A$12:$A106)+1) -> 
A108: =IF($M108="","",MAX($A$12:$A107)+1) -> 
A109: =IF($M109="","",MAX($A$12:$A108)+1) -> 
A110: =IF($M110="","",MAX($A$12:$A109)+1) -> 
A111: =IF($M111="","",MAX($A$12:$A110)+1) -> 
A112: =IF($M112="","",MAX($A$12:$A111)+1) -> 
A113: =IF($M113="","",MAX($A$12:$A112)+1) -> 
A114: =IF($M114="","",MAX($A$12:$A113)+1) -> 
A115: =IF($M115="","",MAX($A$12:$A114)+1) -> 
A116: =IF($M116="","",MAX($A$12:$A115)+1) -> 
A117: =IF($M117="","",MAX($A$12:$A116)+1) -> 
A118: =IF($M118="","",MAX($A$12:$A117)+1) -> 
A119: =IF($M119="","",MAX($A$12:$A118)+1) -> 
A120: =IF($M120="","",MAX($A$12:$A119)+1) -> 
